NUMERO_MANDATO;RIGA_MANDATO;QUIET;IMPORTO_RIGA;IMPORTO_MANDATO;BENEFICIARIO;CIG;TITOLO_PAGAMENTO;DATA_MANDATO;CAPITOLO;ARTICOLO;NUMERO_IMPEGNO;TITOLO;DESCR_TITOLO;LIVELLO_II;DESCR_LIVELLO_II;LIVELLO_III;DESCR_LIVELLO_III;LIVELLO_IV;DESCR_LIVELLO_IV;LIVELLO_V;DESCR_LIVELLO_V;DATA_PAG_EFF;
456;1;632;"75,88";"1.346,87";ABBADESSA SEBASTIANO GIORGIO; ;GETTONI PRESENZA C.C. 2017;04-04-2018;1002;0;274;1;Spese correnti;3;Acquisto di beni e servizi;2;Acquisto di servizi;1;Organi e incarichi istituzionali dell'amministrazione;1;Organi istituzionali dell'amministrazione - Indennità;05-04-2018;
456;2;633;"113,82";"1.346,87";BIONDO ENZO; ;GETTONI PRESENZA C.C. 2017;04-04-2018;1002;0;274;1;Spese correnti;3;Acquisto di beni e servizi;2;Acquisto di servizi;1;Organi e incarichi istituzionali dell'amministrazione;1;Organi istituzionali dell'amministrazione - Indennità;05-04-2018;
456;3;634;"151,76";"1.346,87";CAMUTI GIAN LUCA; ;GETTONI PRESENZA C.C. 2017;04-04-2018;1002;0;274;1;Spese correnti;3;Acquisto di beni e servizi;2;Acquisto di servizi;1;Organi e incarichi istituzionali dell'amministrazione;1;Organi istituzionali dell'amministrazione - Indennità;05-04-2018;
456;4;635;"132,79";"1.346,87";DI BELLA GIANLUCA; ;GETTONI PRESENZA C.C. 2017;04-04-2018;1002;0;274;1;Spese correnti;3;Acquisto di beni e servizi;2;Acquisto di servizi;1;Organi e incarichi istituzionali dell'amministrazione;1;Organi istituzionali dell'amministrazione - Indennità;05-04-2018;
456;5;636;"151,76";"1.346,87";DI PERNA LUCIA; ;GETTONI PRESENZA C.C. 2017;04-04-2018;1002;0;274;1;Spese correnti;3;Acquisto di beni e servizi;2;Acquisto di servizi;1;Organi e incarichi istituzionali dell'amministrazione;1;Organi istituzionali dell'amministrazione - Indennità;05-04-2018;
456;6;637;"151,76";"1.346,87";FIORE SERGIO GAETANO; ;GETTONI PRESENZA C.C. 2017;04-04-2018;1002;0;274;1;Spese correnti;3;Acquisto di beni e servizi;2;Acquisto di servizi;1;Organi e incarichi istituzionali dell'amministrazione;1;Organi istituzionali dell'amministrazione - Indennità;05-04-2018;
456;7;638;"151,76";"1.346,87";HAMLAOUI LEILA; ;GETTONI PRESENZA C.C. 2017;04-04-2018;1002;0;274;1;Spese correnti;3;Acquisto di beni e servizi;2;Acquisto di servizi;1;Organi e incarichi istituzionali dell'amministrazione;1;Organi istituzionali dell'amministrazione - Indennità;05-04-2018;
456;8;639;"151,76";"1.346,87";MARTINO DANIELA; ;GETTONI PRESENZA C.C. 2017;04-04-2018;1002;0;274;1;Spese correnti;3;Acquisto di beni e servizi;2;Acquisto di servizi;1;Organi e incarichi istituzionali dell'amministrazione;1;Organi istituzionali dell'amministrazione - Indennità;05-04-2018;
456;9;640;"151,76";"1.346,87";PAGANA FRANCESCO; ;GETTONI PRESENZA C.C. 2017;04-04-2018;1002;0;274;1;Spese correnti;3;Acquisto di beni e servizi;2;Acquisto di servizi;1;Organi e incarichi istituzionali dell'amministrazione;1;Organi istituzionali dell'amministrazione - Indennità;05-04-2018;
456;10;641;"113,82";"1.346,87";PAGLIAZZO VINCENZINA; ;GETTONI PRESENZA C.C. 2017;04-04-2018;1002;0;274;1;Spese correnti;3;Acquisto di beni e servizi;2;Acquisto di servizi;1;Organi e incarichi istituzionali dell'amministrazione;1;Organi istituzionali dell'amministrazione - Indennità;05-04-2018;
457;1;642;"1.518,37";"1.897,96";FIORE SALVATORE VITTORIO; ;INDENNITA' FUNZIONE MARZO 2018;04-04-2018;1001;0;18;1;Spese correnti;3;Acquisto di beni e servizi;2;Acquisto di servizi;1;Organi e incarichi istituzionali dell'amministrazione;1;Organi istituzionali dell'amministrazione - Indennità;05-04-2018;
457;2;643;"151,83";"1.897,96";INTERDONATO ARMANDO; ;INDENNITA' FUNZIONE MARZO 2018;04-04-2018;1001;0;18;1;Spese correnti;3;Acquisto di beni e servizi;2;Acquisto di servizi;1;Organi e incarichi istituzionali dell'amministrazione;1;Organi istituzionali dell'amministrazione - Indennità;05-04-2018;
457;3;644;"227,76";"1.897,96";PETTINATO  ROSA SANDRA; ;INDENNITA' FUNZIONE MARZO 2018;04-04-2018;1001;0;18;1;Spese correnti;3;Acquisto di beni e servizi;2;Acquisto di servizi;1;Organi e incarichi istituzionali dell'amministrazione;1;Organi istituzionali dell'amministrazione - Indennità;05-04-2018;
458;1;645;"145,00";"3.648,00";ABRAMO ANTONIO; ;ELEZIONE CAMERA DEI DEPUTATI E SENATO DELLA REPUBBLICA DEL 04/03/2018-ONORARI COMP. SEGGI ELETTORALI;04-04-2018;1031;0;36;1;Spese correnti;3;Acquisto di beni e servizi;2;Acquisto di servizi;99;Altri servizi;4;Altre spese per consultazioni elettorali dell'ente;05-04-2018;
458;2;646;"145,00";"3.648,00";BORRELLO MIRELLA; ;ELEZIONE CAMERA DEI DEPUTATI E SENATO DELLA REPUBBLICA DEL 04/03/2018-ONORARI COMP. SEGGI ELETTORALI;04-04-2018;1031;0;36;1;Spese correnti;3;Acquisto di beni e servizi;2;Acquisto di servizi;99;Altri servizi;4;Altre spese per consultazioni elettorali dell'ente;05-04-2018;
458;3;647;"145,00";"3.648,00";BRIGANDI' EVA; ;ELEZIONE CAMERA DEI DEPUTATI E SENATO DELLA REPUBBLICA DEL 04/03/2018-ONORARI COMP. SEGGI ELETTORALI;04-04-2018;1031;0;36;1;Spese correnti;3;Acquisto di beni e servizi;2;Acquisto di servizi;99;Altri servizi;4;Altre spese per consultazioni elettorali dell'ente;05-04-2018;
458;4;648;"145,00";"3.648,00";CAPORLINGUA NADIA; ;ELEZIONE CAMERA DEI DEPUTATI E SENATO DELLA REPUBBLICA DEL 04/03/2018-ONORARI COMP. SEGGI ELETTORALI;04-04-2018;1031;0;36;1;Spese correnti;3;Acquisto di beni e servizi;2;Acquisto di servizi;99;Altri servizi;4;Altre spese per consultazioni elettorali dell'ente;05-04-2018;
458;5;649;"145,00";"3.648,00";CAPPADONA FILIPPO; ;ELEZIONE CAMERA DEI DEPUTATI E SENATO DELLA REPUBBLICA DEL 04/03/2018-ONORARI COMP. SEGGI ELETTORALI;04-04-2018;1031;0;36;1;Spese correnti;3;Acquisto di beni e servizi;2;Acquisto di servizi;99;Altri servizi;4;Altre spese per consultazioni elettorali dell'ente;05-04-2018;
458;6;650;"145,00";"3.648,00";CARUSO MARIA; ;ELEZIONE CAMERA DEI DEPUTATI E SENATO DELLA REPUBBLICA DEL 04/03/2018-ONORARI COMP. SEGGI ELETTORALI;04-04-2018;1031;0;36;1;Spese correnti;3;Acquisto di beni e servizi;2;Acquisto di servizi;99;Altri servizi;4;Altre spese per consultazioni elettorali dell'ente;05-04-2018;
458;7;651;"187,00";"3.648,00";DE LUCA EUGENIA; ;ELEZIONE CAMERA DEI DEPUTATI E SENATO DELLA REPUBBLICA DEL 04/03/2018-ONORARI COMP. SEGGI ELETTORALI;04-04-2018;1031;0;36;1;Spese correnti;3;Acquisto di beni e servizi;2;Acquisto di servizi;99;Altri servizi;4;Altre spese per consultazioni elettorali dell'ente;05-04-2018;
458;8;1051;"145,00";"3.648,00";DI DIO FABIO; ;ELEZIONE CAMERA DEI DEPUTATI E SENATO DELLA REPUBBLICA DEL 04/03/2018-ONORARI COMP. SEGGI ELETTORALI;04-04-2018;1031;0;36;1;Spese correnti;3;Acquisto di beni e servizi;2;Acquisto di servizi;99;Altri servizi;4;Altre spese per consultazioni elettorali dell'ente;15-06-2018;
458;9;652;"145,00";"3.648,00";DI STEFANO MARIA ANTONINA; ;ELEZIONE CAMERA DEI DEPUTATI E SENATO DELLA REPUBBLICA DEL 04/03/2018-ONORARI COMP. SEGGI ELETTORALI;04-04-2018;1031;0;36;1;Spese correnti;3;Acquisto di beni e servizi;2;Acquisto di servizi;99;Altri servizi;4;Altre spese per consultazioni elettorali dell'ente;05-04-2018;
458;10;653;"145,00";"3.648,00";GULINO MARIA; ;ELEZIONE CAMERA DEI DEPUTATI E SENATO DELLA REPUBBLICA DEL 04/03/2018-ONORARI COMP. SEGGI ELETTORALI;04-04-2018;1031;0;36;1;Spese correnti;3;Acquisto di beni e servizi;2;Acquisto di servizi;99;Altri servizi;4;Altre spese per consultazioni elettorali dell'ente;05-04-2018;
458;11;654;"145,00";"3.648,00";MAIORANA ALESSANDRO; ;ELEZIONE CAMERA DEI DEPUTATI E SENATO DELLA REPUBBLICA DEL 04/03/2018-ONORARI COMP. SEGGI ELETTORALI;04-04-2018;1031;0;36;1;Spese correnti;3;Acquisto di beni e servizi;2;Acquisto di servizi;99;Altri servizi;4;Altre spese per consultazioni elettorali dell'ente;05-04-2018;
458;12;655;"187,00";"3.648,00";MARCHELLO CARMELITA CINZIA; ;ELEZIONE CAMERA DEI DEPUTATI E SENATO DELLA REPUBBLICA DEL 04/03/2018-ONORARI COMP. SEGGI ELETTORALI;04-04-2018;1031;0;36;1;Spese correnti;3;Acquisto di beni e servizi;2;Acquisto di servizi;99;Altri servizi;4;Altre spese per consultazioni elettorali dell'ente;05-04-2018;
458;13;656;"187,00";"3.648,00";NATOLI MASSIMO SANTI; ;ELEZIONE CAMERA DEI DEPUTATI E SENATO DELLA REPUBBLICA DEL 04/03/2018-ONORARI COMP. SEGGI ELETTORALI;04-04-2018;1031;0;36;1;Spese correnti;3;Acquisto di beni e servizi;2;Acquisto di servizi;99;Altri servizi;4;Altre spese per consultazioni elettorali dell'ente;05-04-2018;
458;14;0;"145,00";"3.648,00";PANTANO LORENA; ;ELEZIONE CAMERA DEI DEPUTATI E SENATO DELLA REPUBBLICA DEL 04/03/2018-ONORARI COMP. SEGGI ELETTORALI;04-04-2018;1031;0;36;1;Spese correnti;3;Acquisto di beni e servizi;2;Acquisto di servizi;99;Altri servizi;4;Altre spese per consultazioni elettorali dell'ente;04-04-2018;
458;15;657;"145,00";"3.648,00";PETTINATO TINDARA; ;ELEZIONE CAMERA DEI DEPUTATI E SENATO DELLA REPUBBLICA DEL 04/03/2018-ONORARI COMP. SEGGI ELETTORALI;04-04-2018;1031;0;36;1;Spese correnti;3;Acquisto di beni e servizi;2;Acquisto di servizi;99;Altri servizi;4;Altre spese per consultazioni elettorali dell'ente;05-04-2018;
458;16;658;"145,00";"3.648,00";PINTABONA CHIARA; ;ELEZIONE CAMERA DEI DEPUTATI E SENATO DELLA REPUBBLICA DEL 04/03/2018-ONORARI COMP. SEGGI ELETTORALI;04-04-2018;1031;0;36;1;Spese correnti;3;Acquisto di beni e servizi;2;Acquisto di servizi;99;Altri servizi;4;Altre spese per consultazioni elettorali dell'ente;05-04-2018;
458;17;854;"145,00";"3.648,00";PINTAUDI GIUSEPPINA; ;ELEZIONE CAMERA DEI DEPUTATI E SENATO DELLA REPUBBLICA DEL 04/03/2018-ONORARI COMP. SEGGI ELETTORALI;04-04-2018;1031;0;36;1;Spese correnti;3;Acquisto di beni e servizi;2;Acquisto di servizi;99;Altri servizi;4;Altre spese per consultazioni elettorali dell'ente;08-05-2018;
458;18;659;"187,00";"3.648,00";SALTAFOSSO FRANCA; ;ELEZIONE CAMERA DEI DEPUTATI E SENATO DELLA REPUBBLICA DEL 04/03/2018-ONORARI COMP. SEGGI ELETTORALI;04-04-2018;1031;0;36;1;Spese correnti;3;Acquisto di beni e servizi;2;Acquisto di servizi;99;Altri servizi;4;Altre spese per consultazioni elettorali dell'ente;05-04-2018;
458;19;762;"145,00";"3.648,00";SCAFFIDI ANTONELLA; ;ELEZIONE CAMERA DEI DEPUTATI E SENATO DELLA REPUBBLICA DEL 04/03/2018-ONORARI COMP. SEGGI ELETTORALI;04-04-2018;1031;0;36;1;Spese correnti;3;Acquisto di beni e servizi;2;Acquisto di servizi;99;Altri servizi;4;Altre spese per consultazioni elettorali dell'ente;24-04-2018;
458;20;660;"145,00";"3.648,00";SPARTA' FRANCESCA; ;ELEZIONE CAMERA DEI DEPUTATI E SENATO DELLA REPUBBLICA DEL 04/03/2018-ONORARI COMP. SEGGI ELETTORALI;04-04-2018;1031;0;36;1;Spese correnti;3;Acquisto di beni e servizi;2;Acquisto di servizi;99;Altri servizi;4;Altre spese per consultazioni elettorali dell'ente;05-04-2018;
458;21;661;"145,00";"3.648,00";TOPOLINI MARGARITTA; ;ELEZIONE CAMERA DEI DEPUTATI E SENATO DELLA REPUBBLICA DEL 04/03/2018-ONORARI COMP. SEGGI ELETTORALI;04-04-2018;1031;0;36;1;Spese correnti;3;Acquisto di beni e servizi;2;Acquisto di servizi;99;Altri servizi;4;Altre spese per consultazioni elettorali dell'ente;05-04-2018;
458;22;662;"145,00";"3.648,00";TOPOLINI SALVATRICE BEATRICE; ;ELEZIONE CAMERA DEI DEPUTATI E SENATO DELLA REPUBBLICA DEL 04/03/2018-ONORARI COMP. SEGGI ELETTORALI;04-04-2018;1031;0;36;1;Spese correnti;3;Acquisto di beni e servizi;2;Acquisto di servizi;99;Altri servizi;4;Altre spese per consultazioni elettorali dell'ente;05-04-2018;
458;23;663;"145,00";"3.648,00";TRICOLI GIUSI; ;ELEZIONE CAMERA DEI DEPUTATI E SENATO DELLA REPUBBLICA DEL 04/03/2018-ONORARI COMP. SEGGI ELETTORALI;04-04-2018;1031;0;36;1;Spese correnti;3;Acquisto di beni e servizi;2;Acquisto di servizi;99;Altri servizi;4;Altre spese per consultazioni elettorali dell'ente;05-04-2018;
458;24;664;"145,00";"3.648,00";VENTIMIGLIA ANNA; ;ELEZIONE CAMERA DEI DEPUTATI E SENATO DELLA REPUBBLICA DEL 04/03/2018-ONORARI COMP. SEGGI ELETTORALI;04-04-2018;1031;0;36;1;Spese correnti;3;Acquisto di beni e servizi;2;Acquisto di servizi;99;Altri servizi;4;Altre spese per consultazioni elettorali dell'ente;05-04-2018;
459;1;665;"582,86";"582,86";DI VITA VINCENZO;ZA1218B05C;SALDO Fatt.n. 08/2018  del 03/03/2018 Vendita - Scissione dei Pagamenti - Art. 17-Ter del DPR 633/1972( IVA  esposta in fattura deve essere versata dal destinatario all'Erario);05-04-2018;1579;0;548;1;Spese correnti;3;Acquisto di beni e servizi;2;Acquisto di servizi;9;Manutenzione ordinaria e riparazioni;8;Manutenzione ordinaria e riparazioni di beni immobili;05-04-2018;
460;1;666;"6.340,48";"6.340,48";IALITE ONLUS;ZA020E82FC;"SALDO Fatt.n. 25  del 07/03/2018 SERVIZIO DI ASSISTENZA DOMICILIARE IN FAVORE DI         ANZIANI,MINORI, DIVERSAMENTE ABILI E NUCLEI FAMILIARI IN CONDIZIONI DI         DISAGIO - DAL 01.02.2018 AL 28.02.2018 - CIG: ZA020E82FC";05-04-2018;1878;2;35;1;Spese correnti;3;Acquisto di beni e servizi;2;Acquisto di servizi;15;Contratti di servizio pubblico;9;Contratti di servizio di assistenza sociale domiciliare;05-04-2018;
461;1;668;"13,20";"13,20";MAGGIOLI S.p.A.; ;SALDO Fatt.n. 0002104415  del 31/01/2018 liste elettorali;06-04-2018;1031;4;40;1;Spese correnti;3;Acquisto di beni e servizi;1;Acquisto di beni;2;Altri beni di consumo;1;"Carta, cancelleria e stampati";06-04-2018;
462;1;669;"29,70";"29,70";MyO S.R.L.; ;SALDO Fatt.n. 2040/180004943  del 23/02/2018 NASTRI STAMPANTE EPSON;06-04-2018;1043;3;441;1;Spese correnti;3;Acquisto di beni e servizi;2;Acquisto di servizi;16;Servizi amministrativi;2;Spese postali;06-04-2018;
463;1;670;"62,58";"62,58";ECONOMO COMUNALE; ;RIMBORSO SPESE ECONOMATO PER ADEMPIMENTI INERENTI LO SVOLGIMENTO COMIZI ELETTORALI DEL 04/03/2018 PER ELEZIONI POLITICHE;06-04-2018;1031;4;40;1;Spese correnti;3;Acquisto di beni e servizi;1;Acquisto di beni;2;Altri beni di consumo;1;"Carta, cancelleria e stampati";06-04-2018;
464;1;671;"6.848,46";"6.848,46";SICULA TRASPORTI S.R.L.;6150991658;SALDO Fatt.n. 133/03  del 31/01/2018 conferimento rifiuti gen.2018;09-04-2018;1743;0;49;1;Spese correnti;3;Acquisto di beni e servizi;2;Acquisto di servizi;15;Contratti di servizio pubblico;5;Contratti di servizio per il conferimento in discarica dei rifiuti;09-04-2018;
465;1;672;"1.942,38";"3.941,19";Pi.Eco S.r.l.;Z1D1B9D2D9;SALDO Fatt.n. 25  del 28/02/2018 conferimento rifiuti biodegradabili febbraio 2018;09-04-2018;1743;0;50;1;Spese correnti;3;Acquisto di beni e servizi;2;Acquisto di servizi;15;Contratti di servizio pubblico;5;Contratti di servizio per il conferimento in discarica dei rifiuti;09-04-2018;
465;2;672;"1.998,81";"3.941,19";Pi.Eco S.r.l.;Z1D1B9D2D9;SALDO Fatt.n. 6  del 31/01/2018 CONFERIMENTO RIFIUTI BIODEGRADABILI GEN.2018;09-04-2018;1743;0;50;1;Spese correnti;3;Acquisto di beni e servizi;2;Acquisto di servizi;15;Contratti di servizio pubblico;5;Contratti di servizio per il conferimento in discarica dei rifiuti;09-04-2018;
466;1;760;"1.522,50";"1.522,50";IRA SOEMIA;Z0C212E8DF;SALDO Fatt.n. 000002-2018-fe  del 14/02/2018 spettacoli giocoleria natale;09-04-2018;1520;1;413;1;Spese correnti;3;Acquisto di beni e servizi;2;Acquisto di servizi;2;"Organizzazione eventi, pubblicita` e servizi per trasferta";5;Organizzazione e partecipazione a manifestazioni e convegni;23-04-2018;
467;1;761;"350,00";"350,00";IRA SOEMIA;Z3421418D0;SALDO Fatt.n. 000001-2018-fe  del 14/02/2018 spettacolo giocoleria natale;09-04-2018;1520;1;452;1;Spese correnti;3;Acquisto di beni e servizi;2;Acquisto di servizi;2;"Organizzazione eventi, pubblicita` e servizi per trasferta";5;Organizzazione e partecipazione a manifestazioni e convegni;23-04-2018;
468;1;673;"757,19";"757,19";T.A.I. SRL;Z441FE4B65;SALDO Fatt.n. FATTPA 3_18  del 01/03/2018 trasporto studenti feb.2018;09-04-2018;2000;9;281;1;Spese correnti;3;Acquisto di beni e servizi;2;Acquisto di servizi;15;Contratti di servizio pubblico;2;Contratti di servizio di trasporto scolastico;09-04-2018;
469;1;674;"99,90";"99,90";AUTOLINEE MAGISTRO SRL;Z9D1FE4BDA;SALDO Fatt.n. FATTPA 30_18  del 01/03/2018 trasporto studenti feb.2018;09-04-2018;2000;9;282;1;Spese correnti;3;Acquisto di beni e servizi;2;Acquisto di servizi;15;Contratti di servizio pubblico;2;Contratti di servizio di trasporto scolastico;09-04-2018;
470;1;675;"8,99";"115,00";KUWAIT PETROLEUM ITALIA S.P.A.;6516542493;Fatt.n. PJ00118852 del 28/02/2018 CARBURANTE AUTOMEZZI FEBBRAIO 2018;09-04-2018;6080;2;23;1;Spese correnti;3;Acquisto di beni e servizi;1;Acquisto di beni;2;Altri beni di consumo;2;"Carburanti, combustibili e lubrificanti";09-04-2018;
470;2;675;"106,01";"115,00";KUWAIT PETROLEUM ITALIA S.P.A.; ;Fatt.n. PJ00118852 del 28/02/2018 CARBURANTE AUTOMEZZI FEBBRAIO 2018;09-04-2018;6080;2;23;1;Spese correnti;3;Acquisto di beni e servizi;1;Acquisto di beni;2;Altri beni di consumo;2;"Carburanti, combustibili e lubrificanti";09-04-2018;
471;1;676;"853,00";"853,00";KUWAIT PETROLEUM ITALIA S.P.A.; ;Fatt.n. PJ00118852 del 28/02/2018 CARBURANTE AUTOMEZZI FEBBRAIO 2018;09-04-2018;6080;3;24;1;Spese correnti;3;Acquisto di beni e servizi;1;Acquisto di beni;2;Altri beni di consumo;2;"Carburanti, combustibili e lubrificanti";09-04-2018;
472;1;677;"345,00";"345,00";KUWAIT PETROLEUM ITALIA S.P.A.; ;Fatt.n. PJ00118852 del 28/02/2018 CARBURANTE AUTOMEZZI FEBBRAIO 2018;09-04-2018;6080;4;25;1;Spese correnti;3;Acquisto di beni e servizi;1;Acquisto di beni;2;Altri beni di consumo;2;"Carburanti, combustibili e lubrificanti";09-04-2018;
473;1;678;"336,00";"336,00";KUWAIT PETROLEUM ITALIA S.P.A.; ;Fatt.n. PJ00118852 del 28/02/2018 CARBURANTE AUTOMEZZI FEBBRAIO 2018;09-04-2018;6080;5;26;1;Spese correnti;3;Acquisto di beni e servizi;1;Acquisto di beni;2;Altri beni di consumo;2;"Carburanti, combustibili e lubrificanti";09-04-2018;
474;1;679;"116,00";"116,00";KUWAIT PETROLEUM ITALIA S.P.A.; ;Fatt.n. PJ00118852 del 28/02/2018 CARBURANTE AUTOMEZZI FEBBRAIO 2018;09-04-2018;6080;7;27;1;Spese correnti;3;Acquisto di beni e servizi;1;Acquisto di beni;2;Altri beni di consumo;2;"Carburanti, combustibili e lubrificanti";09-04-2018;
475;1;683;"195,07";"195,07";TELECOM ITALIA S.P.A.-TIM SPA; ;SALDO Fatt.n. 8V00112006  del 08/03/2018 FATT. 2 BIM.2018 TEL.661033 IST.COMPRENSIVO;09-04-2018;6040;9;392;1;Spese correnti;3;Acquisto di beni e servizi;2;Acquisto di servizi;5;Utenze e canoni;1;Telefonia fissa;10-04-2018;
476;1;680;"1.878,80";"1.878,80";FLY SRL UNIPERSONALE;ZA521871B5;SALDO Fatt.n. 19  del 07/02/2018 FORNITURA DI CESTINI;09-04-2018;5087;1;306;2;Spese in conto capitale;2;Investimenti fissi lordi e acquisto di terreni;1;Beni materiali;9;Beni immobili;13;Altre vie di comunicazione;09-04-2018;
477;1;681;"5.131,77";"5.131,77";I.S.G. COSTRUZIONI S.R.L.;ZCF2141678;SALDO Fatt.n. 2 / FE  del 07/03/2018 LAVORI RIPRISTINO TRATTI PAVIMENTAZIONE STRADALE E MARCIAPIEDI;09-04-2018;5087;1;139;2;Spese in conto capitale;2;Investimenti fissi lordi e acquisto di terreni;1;Beni materiali;9;Beni immobili;13;Altre vie di comunicazione;09-04-2018;
478;1;682;"683,28";"683,28";FORZANO GIUSEPPE; ;INDENNITA' FUNZIONE PRESIDENTE C.C. GEN./FEB./MAR. 2018;09-04-2018;1001;0;56;1;Spese correnti;3;Acquisto di beni e servizi;2;Acquisto di servizi;1;Organi e incarichi istituzionali dell'amministrazione;1;Organi istituzionali dell'amministrazione - Indennità;09-04-2018;
479;1;838;"1.481,31";"1.481,31";Wind Tre S.p.A.; ;SALDO Fatt.n. 2017E000011026  del 19/12/2017 canoni 04/04-30/04/2017-periodo 01/03-30/04/17;12-04-2018;6040;5;426;1;Spese correnti;3;Acquisto di beni e servizi;2;Acquisto di servizi;5;Utenze e canoni;1;Telefonia fissa;03-05-2018;
480;1;713;"2.025,93";"2.025,93";Wind Tre S.p.A.; ;SALDO Fatt.n. 2018E000002791  del 19/03/2018 FATTURAZIONE I BIM.2018;12-04-2018;6040;5;390;1;Spese correnti;3;Acquisto di beni e servizi;2;Acquisto di servizi;5;Utenze e canoni;1;Telefonia fissa;16-04-2018;
481;1;714;"169,68";"169,68";M. & D. di CANGEMI LAURA;ZF121637F3;SALDO Fatt.n. 000001-2018-FE  del 20/03/2018 FORNITURA MATERIALE D'USO PER L'ASILO NIDO RIF.DET.N.155 DEL 21/12/2017 PROT.GEN.N.16026/279 DEL 21/12/2017;12-04-2018;1776;1;510;1;Spese correnti;3;Acquisto di beni e servizi;1;Acquisto di beni;2;Altri beni di consumo;999;Altri beni e materiali di consumo n.a.c.;16-04-2018;
482;1;715;"0,01";"6.740,80";AZIENDA SICILIANA TRASPORTI;ZA81FE51C2;SALDO Fatt.n. 59/S4  del 19/03/2018 trasporto studenti marzo 2018;12-04-2018;2000;9;279;1;Spese correnti;3;Acquisto di beni e servizi;2;Acquisto di servizi;15;Contratti di servizio pubblico;2;Contratti di servizio di trasporto scolastico;16-04-2018;
482;2;715;"6.740,79";"6.740,80";AZIENDA SICILIANA TRASPORTI;ZA81FE51C2;ACCONTO Fatt.n. 59/S4  del 19/03/2018 trasporto studenti marzo 2018;12-04-2018;2000;9;279;1;Spese correnti;3;Acquisto di beni e servizi;2;Acquisto di servizi;15;Contratti di servizio pubblico;2;Contratti di servizio di trasporto scolastico;16-04-2018;
483;1;716;"1.499,93";"1.499,93";CAFARELLI TINDARO;ZA22256ABA;SALDO Fatt.n. 000001-2018-CATI  del 19/02/2018 SALDO FORNITURA DI GASOLIO;12-04-2018;6060;5;30;1;Spese correnti;3;Acquisto di beni e servizi;1;Acquisto di beni;2;Altri beni di consumo;2;"Carburanti, combustibili e lubrificanti";16-04-2018;
484;1;717;"5.805,89";"5.805,89";SICULA TRASPORTI S.R.L.;6150991658;SALDO Fatt.n. 327/03  del 28/02/2018 CONFERIMENTO RIFIUTI IN DISCARICA FEB.2018;12-04-2018;1743;0;49;1;Spese correnti;3;Acquisto di beni e servizi;2;Acquisto di servizi;15;Contratti di servizio pubblico;5;Contratti di servizio per il conferimento in discarica dei rifiuti;16-04-2018;
485;1;0;"800,00";"800,00";ASSOCIAZIONE TUTTO IN FESTA; ;CONTRIBUTI MANIFESTAZIONI PROGRAMMA ESTATE 2017;12-04-2018;2000;7;560;1;Spese correnti;4;Trasferimenti correnti;4;Trasferimenti correnti a Istituzioni Sociali Private;1;Trasferimenti correnti a Istituzioni Sociali Private;1;Trasferimenti correnti a Istituzioni Sociali Private;12-04-2018;
486;1;718;"1.956,63";"1.956,63";ASSOCIAZIONE FRATERNITA' MISERICORDIA; ;INTERVENTO SOSTEGNO SOGGETTI DIVERSAMENTE ABILI NELLE SCUOLE A.S.2017/2018-febbraio 2018;12-04-2018;1775;0;456;1;Spese correnti;3;Acquisto di beni e servizi;2;Acquisto di servizi;15;Contratti di servizio pubblico;999;Altre spese per contratti di servizio pubblico;16-04-2018;
487;1;827;"200,00";"200,00";ISTITUTO COMPRENSIVO-DISTRETTO DI PATTI N.33; ;"contributo per acquisto registri,materiale cancelleria,materiale di pulizia e materiale sanitario A.S.2017/2018";12-04-2018;6050;7;317;1;Spese correnti;3;Acquisto di beni e servizi;1;Acquisto di beni;2;Altri beni di consumo;1;"Carta, cancelleria e stampati";02-05-2018;
488;1;828;"400,00";"400,00";ISTITUTO COMPRENSIVO-DISTRETTO DI PATTI N.33; ;"contributo per acquisto registri,materiale cancelleria,materiale di pulizia e materiale sanitario A.S.2017/2018";12-04-2018;6050;8;318;1;Spese correnti;3;Acquisto di beni e servizi;1;Acquisto di beni;2;Altri beni di consumo;1;"Carta, cancelleria e stampati";02-05-2018;
489;1;829;"400,00";"400,00";ISTITUTO COMPRENSIVO-DISTRETTO DI PATTI N.33; ;"contributo per acquisto registri,materiale cancelleria,materiale di pulizia e materiale sanitario A.S.2017/2018";12-04-2018;6050;16;319;1;Spese correnti;3;Acquisto di beni e servizi;1;Acquisto di beni;2;Altri beni di consumo;1;"Carta, cancelleria e stampati";02-05-2018;
490;1;630;"56,23";"57,26";AUTOSTRADE PER L'ITALIA S.p.A.; ;ACCONTO Fatt.n. 900005865D  del 30/03/2018 PEDAGGI AUTOSTRADALI MARZO 2018;16-04-2018;1017;0;28;1;Spese correnti;3;Acquisto di beni e servizi;2;Acquisto di servizi;99;Altri servizi;999;Altri servizi diversi n.a.c.;16-04-2018;
490;2;630;"1,03";"57,26";TELEPASS SPA; ;ACCONTO Fatt.n. 900006233T  del 30/03/2018 TELEPASS MARZO 2018;16-04-2018;1017;0;28;1;Spese correnti;3;Acquisto di beni e servizi;2;Acquisto di servizi;99;Altri servizi;999;Altri servizi diversi n.a.c.;16-04-2018;
491;1;719;"12,37";"12,60";AUTOSTRADE PER L'ITALIA S.p.A.;0;SALDO Fatt.n. 900005865D  del 30/03/2018 PEDAGGI AUTOSTRADALI MARZO 2018;16-04-2018;1017;0;28;1;Spese correnti;3;Acquisto di beni e servizi;2;Acquisto di servizi;99;Altri servizi;999;Altri servizi diversi n.a.c.;16-04-2018;
491;2;720;"0,23";"12,60";TELEPASS SPA;0;SALDO Fatt.n. 900006233T  del 30/03/2018 TELEPASS MARZO 2018;16-04-2018;1017;0;28;1;Spese correnti;3;Acquisto di beni e servizi;2;Acquisto di servizi;99;Altri servizi;999;Altri servizi diversi n.a.c.;16-04-2018;
492;1;726;"370,50";"370,50";AGENZIA DELLE ENTRATE; ;REGISTRAZIONE SENTENZA TRIB. DI PATTI N.763/2017;16-04-2018;1058;0;51;1;Spese correnti;3;Acquisto di beni e servizi;2;Acquisto di servizi;99;Altri servizi;2;Altre spese legali;19-04-2018;
493;1;721;"1.005,84";"2.095,84";GIARDINA VIAGGI SRL;ZBA1FE4AD8;SALDO Fatt.n. 81E  del 02/04/2018 TRASPORTO STUDENTI MARZO 2018;16-04-2018;2000;9;280;1;Spese correnti;3;Acquisto di beni e servizi;2;Acquisto di servizi;15;Contratti di servizio pubblico;2;Contratti di servizio di trasporto scolastico;16-04-2018;
493;2;721;"1.090,00";"2.095,84";GIARDINA VIAGGI SRL;ZBA1FE4AD8;SALDO Fatt.n. 68E  del 24/03/2018 TRASPORTO STUDENTI MARZO 2018;16-04-2018;2000;9;280;1;Spese correnti;3;Acquisto di beni e servizi;2;Acquisto di servizi;15;Contratti di servizio pubblico;2;Contratti di servizio di trasporto scolastico;16-04-2018;
494;1;722;"7.650,55";"7.650,55";COOP. SOCIALE ORCHIDEA;Z432014AD5;SALDO Fatt.n. 36 E  del 28/03/2018 PASTI MENSA SCOLASTICA MARZO 2018;16-04-2018;2000;8;398;1;Spese correnti;3;Acquisto di beni e servizi;2;Acquisto di servizi;15;Contratti di servizio pubblico;6;Contratti di servizio per le mense scolastiche;16-04-2018;
495;1;725;"845,26";"845,26";EDISON ENERGIE S.P.A.; ;SALDO Fatt.n. FI18366000003313  del 23/03/2018 FATTURAZIONE 06/02-23/03/2018;16-04-2018;6160;3;397;1;Spese correnti;3;Acquisto di beni e servizi;2;Acquisto di servizi;5;Utenze e canoni;6;Gas;19-04-2018;
496;1;723;"811,09";"811,09";ENEL ENERGIA SPA; ;SALDO Fatt.n. 004810605647  del 12/04/2018 fatt. marzo 2018;18-04-2018;6030;5;459;1;Spese correnti;3;Acquisto di beni e servizi;2;Acquisto di servizi;5;Utenze e canoni;4;Energia elettrica;18-04-2018;
497;1;724;"298,11";"6.017,86";ENEL ENERGIA SPA; ;SALDO Fatt.n. 004810605645  del 12/04/2018 fatt. marzo 2018;18-04-2018;6030;12;466;1;Spese correnti;3;Acquisto di beni e servizi;2;Acquisto di servizi;5;Utenze e canoni;4;Energia elettrica;18-04-2018;
497;2;724;"5.719,75";"6.017,86";ENEL ENERGIA SPA; ;SALDO Fatt.n. 004810605646  del 12/04/2018 fatt. marzo 2018;18-04-2018;6030;12;466;1;Spese correnti;3;Acquisto di beni e servizi;2;Acquisto di servizi;5;Utenze e canoni;4;Energia elettrica;18-04-2018;
498;1;818;"660,94";"660,94";ANCI ASSOCIAZIONE NAZIONALE COMUNI ITALIANI; ;ANCI -QUOTA ASSOCIATIVA ANNO 2018;19-04-2018;1060;0;58;1;Spese correnti;4;Trasferimenti correnti;1;Trasferimenti correnti a Amministrazioni Pubbliche;2;Trasferimenti correnti a Amministrazioni Locali;999;Trasferimenti correnti a altre Amministrazioni Locali n.a.c.;27-04-2018;
499;1;749;"1.121,34";"1.121,34";LIMINA PROVVIDENZA; ;spese di viaggio segretario comunale anno 2017;19-04-2018;1110;0;410;1;Spese correnti;3;Acquisto di beni e servizi;2;Acquisto di servizi;2;"Organizzazione eventi, pubblicita` e servizi per trasferta";1;Rimborso per viaggio e trasloco;20-04-2018;
504;1;728;"1.424,23";"1.424,23";TESORIERE COMUNALE-CREDITO SICILIANO; ;MUTUO COSTRUZIONE 24 ALLOGGI POPOLARI-COMP. RUP;19-04-2018;5064;0;1428;2;Spese in conto capitale;2;Investimenti fissi lordi e acquisto di terreni;1;Beni materiali;9;Beni immobili;1;Fabbricati ad uso abitativo;19-04-2018;
557;1;819;"79,20";"79,20";MEDIABRAVO DI S. BRAVO; ;SALDO Fatt.n. E/28  del 05/04/2018 CASSETTA A NASTRO ROSSO FRANCOLAB;27-04-2018;1043;3;441;1;Spese correnti;3;Acquisto di beni e servizi;2;Acquisto di servizi;16;Servizi amministrativi;2;Spese postali;27-04-2018;
559;1;830;"1.518,37";"1.977,87";FIORE SALVATORE VITTORIO; ;INDENNITA' FUNZIONE APRILE 2018;02-05-2018;1001;0;18;1;Spese correnti;3;Acquisto di beni e servizi;2;Acquisto di servizi;1;Organi e incarichi istituzionali dell'amministrazione;1;Organi istituzionali dell'amministrazione - Indennità;02-05-2018;
559;2;831;"151,83";"1.977,87";INTERDONATO ARMANDO; ;INDENNITA' FUNZIONE APRILE 2018;02-05-2018;1001;0;18;1;Spese correnti;3;Acquisto di beni e servizi;2;Acquisto di servizi;1;Organi e incarichi istituzionali dell'amministrazione;1;Organi istituzionali dell'amministrazione - Indennità;02-05-2018;
559;3;832;"110,27";"1.977,87";LAMANCUSA MARCO; ;INDENNITA' FUNZIONE - CONGUAGLIO PERIODO 29/09/17-30/04/2018;02-05-2018;1001;0;18;1;Spese correnti;3;Acquisto di beni e servizi;2;Acquisto di servizi;1;Organi e incarichi istituzionali dell'amministrazione;1;Organi istituzionali dell'amministrazione - Indennità;02-05-2018;
559;4;833;"197,40";"1.977,87";PETTINATO  ROSA SANDRA; ;INDENNITA' FUNZIONE APRILE 2018;02-05-2018;1001;0;18;1;Spese correnti;3;Acquisto di beni e servizi;2;Acquisto di servizi;1;Organi e incarichi istituzionali dell'amministrazione;1;Organi istituzionali dell'amministrazione - Indennità;02-05-2018;
560;1;834;"2.177,70";"2.177,70";HALLEY SUD SRL;ZE91C8D94E;SALDO Fatt.n. 201800206  del 05/04/2018 Canone di assistenza Software dal 01/01/2018 al 31/03/2018;02-05-2018;2100;1;495;1;Spese correnti;3;Acquisto di beni e servizi;2;Acquisto di servizi;19;Servizi informatici e di telecomunicazioni;5;Servizi per i sistemi e relativa manutenzione;02-05-2018;
561;1;835;"6.340,48";"6.340,48";IALITE ONLUS;ZA020E82FC;"SALDO Fatt.n. 52  del 05/04/2018 SERVIZIO DI ASSISTENZA DOMICILIARE IN FAVORE DI         ANZIANI,MINORI, DIVERSAMENTE ABILI E NUCLEI FAMILIARI IN CONDIZIONI DI         DISAGIO - DAL 01.03.2018 AL 31.03.2018 - CIG: ZA020E82FC";02-05-2018;1878;2;35;1;Spese correnti;3;Acquisto di beni e servizi;2;Acquisto di servizi;15;Contratti di servizio pubblico;9;Contratti di servizio di assistenza sociale domiciliare;02-05-2018;
562;1;836;"2.157,71";"2.157,71";Pi.Eco S.r.l.;Z1D1B9D2D9;SALDO Fatt.n. 48  del 31/03/2018 CONFERIMENTO RIFIUTI UMIDO ALIMENTARE MARZO 2018;02-05-2018;1743;0;59;1;Spese correnti;3;Acquisto di beni e servizi;2;Acquisto di servizi;15;Contratti di servizio pubblico;5;Contratti di servizio per il conferimento in discarica dei rifiuti;02-05-2018;
563;1;837;"227,76";"227,76";FORZANO GIUSEPPE; ;INDENNITA' FUNZIONE PRESIDENTE C.C. APRILE 2018;02-05-2018;1001;0;56;1;Spese correnti;3;Acquisto di beni e servizi;2;Acquisto di servizi;1;Organi e incarichi istituzionali dell'amministrazione;1;Organi istituzionali dell'amministrazione - Indennità;02-05-2018;
564;1;840;"8.697,15";"8.697,15";BENFATTA SALVATORE & C. S.N.C.;Z6123163CD;SALDO Fatt.n. 000002-2018-FATTURE  del 09/04/2018 IMPEGNO SPESA N.14 DEL 09/04/2018-RIPRISTINO CONDOTTA IDRICA;03-05-2018;1570;0;54;1;Spese correnti;3;Acquisto di beni e servizi;2;Acquisto di servizi;9;Manutenzione ordinaria e riparazioni;11;Manutenzione ordinaria e riparazioni di altri beni materiali;03-05-2018;
565;1;841;"5.150,95";"5.150,95";S.R.R. MESSINA PROVINCIA SOC. CONSOR. SPA; ;ESPLETAMENTO GARA AFFIDAMENTO SERVIZIO RACCOLTA RR.SS.UU.;04-05-2018;1744;0;127;1;Spese correnti;3;Acquisto di beni e servizi;2;Acquisto di servizi;15;Contratti di servizio pubblico;5;Contratti di servizio per il conferimento in discarica dei rifiuti;04-05-2018;
566;1;842;"64,99";"195,00";KUWAIT PETROLEUM ITALIA S.P.A.;6516542493;Fatt.n. PJ00122955 del 31/03/2018 CARBURANTE PER AUTOMEZZI COMUNALI MARZO 2018;07-05-2018;6080;1;22;1;Spese correnti;3;Acquisto di beni e servizi;1;Acquisto di beni;2;Altri beni di consumo;2;"Carburanti, combustibili e lubrificanti";07-05-2018;
566;2;842;"130,01";"195,00";KUWAIT PETROLEUM ITALIA S.P.A.; ;Fatt.n. PJ00122955 del 31/03/2018 CARBURANTE PER AUTOMEZZI COMUNALI MARZO 2018;07-05-2018;6080;1;22;1;Spese correnti;3;Acquisto di beni e servizi;1;Acquisto di beni;2;Altri beni di consumo;2;"Carburanti, combustibili e lubrificanti";07-05-2018;
567;1;843;"65,00";"65,00";KUWAIT PETROLEUM ITALIA S.P.A.; ;Fatt.n. PJ00122955 del 31/03/2018 CARBURANTE PER AUTOMEZZI COMUNALI MARZO 2018;07-05-2018;6080;2;23;1;Spese correnti;3;Acquisto di beni e servizi;1;Acquisto di beni;2;Altri beni di consumo;2;"Carburanti, combustibili e lubrificanti";07-05-2018;
568;1;844;"812,00";"812,00";KUWAIT PETROLEUM ITALIA S.P.A.; ;Fatt.n. PJ00122955 del 31/03/2018 CARBURANTE PER AUTOMEZZI COMUNALI MARZO 2018;07-05-2018;6080;3;24;1;Spese correnti;3;Acquisto di beni e servizi;1;Acquisto di beni;2;Altri beni di consumo;2;"Carburanti, combustibili e lubrificanti";07-05-2018;
569;1;845;"250,00";"250,00";KUWAIT PETROLEUM ITALIA S.P.A.; ;Fatt.n. PJ00122955 del 31/03/2018 CARBURANTE PER AUTOMEZZI COMUNALI MARZO 2018;07-05-2018;6080;4;25;1;Spese correnti;3;Acquisto di beni e servizi;1;Acquisto di beni;2;Altri beni di consumo;2;"Carburanti, combustibili e lubrificanti";07-05-2018;
570;1;846;"361,00";"361,00";KUWAIT PETROLEUM ITALIA S.P.A.; ;Fatt.n. PJ00122955 del 31/03/2018 CARBURANTE PER AUTOMEZZI COMUNALI MARZO 2018;07-05-2018;6080;5;26;1;Spese correnti;3;Acquisto di beni e servizi;1;Acquisto di beni;2;Altri beni di consumo;2;"Carburanti, combustibili e lubrificanti";07-05-2018;
571;1;847;"45,00";"45,00";KUWAIT PETROLEUM ITALIA S.P.A.; ;Fatt.n. PJ00122955 del 31/03/2018 CARBURANTE PER AUTOMEZZI COMUNALI MARZO 2018;07-05-2018;6080;7;27;1;Spese correnti;3;Acquisto di beni e servizi;1;Acquisto di beni;2;Altri beni di consumo;2;"Carburanti, combustibili e lubrificanti";07-05-2018;
572;1;853;"2,53";"1.829,42";TELECOM ITALIA S.P.A.-TIM SPA; ;Fatt.n. 8A00230112 del 06/04/2018 3BIM 2018;07-05-2018;6040;5;390;1;Spese correnti;3;Acquisto di beni e servizi;2;Acquisto di servizi;5;Utenze e canoni;1;Telefonia fissa;08-05-2018;
572;2;853;"43,35";"1.829,42";TELECOM ITALIA S.P.A.-TIM SPA; ;Fatt.n. 8V00151831 del 06/04/2018 3BIM 2018;07-05-2018;6040;5;390;1;Spese correnti;3;Acquisto di beni e servizi;2;Acquisto di servizi;5;Utenze e canoni;1;Telefonia fissa;08-05-2018;
572;3;853;"196,70";"1.829,42";TELECOM ITALIA S.P.A.-TIM SPA; ;Fatt.n. 8V00153462 del 06/04/2018 3BIM 2018;07-05-2018;6040;5;390;1;Spese correnti;3;Acquisto di beni e servizi;2;Acquisto di servizi;5;Utenze e canoni;1;Telefonia fissa;08-05-2018;
572;4;853;"396,87";"1.829,42";TELECOM ITALIA S.P.A.-TIM SPA; ;Fatt.n. 8V00153235 del 06/04/2018 3BIM 2018;07-05-2018;6040;5;390;1;Spese correnti;3;Acquisto di beni e servizi;2;Acquisto di servizi;5;Utenze e canoni;1;Telefonia fissa;08-05-2018;
572;5;853;"421,47";"1.829,42";TELECOM ITALIA S.P.A.-TIM SPA; ;Fatt.n. 8V00151269 del 06/04/2018 3BIM 2018;07-05-2018;6040;5;390;1;Spese correnti;3;Acquisto di beni e servizi;2;Acquisto di servizi;5;Utenze e canoni;1;Telefonia fissa;08-05-2018;
572;6;853;"768,50";"1.829,42";TELECOM ITALIA S.P.A.-TIM SPA; ;Fatt.n. 4220918800003046 del 06/04/2018 3BIM 2018;07-05-2018;6040;5;390;1;Spese correnti;3;Acquisto di beni e servizi;2;Acquisto di servizi;5;Utenze e canoni;1;Telefonia fissa;08-05-2018;
573;1;851;"38,60";"170,87";TELECOM ITALIA S.P.A.-TIM SPA; ;Fatt.n. 8V00153025 del 06/04/2018 3BIM 2018;07-05-2018;6040;6;391;1;Spese correnti;3;Acquisto di beni e servizi;2;Acquisto di servizi;5;Utenze e canoni;1;Telefonia fissa;08-05-2018;
573;2;851;"132,27";"170,87";TELECOM ITALIA S.P.A.-TIM SPA; ;Fatt.n. 4220918800003123 del 06/04/2018 3BIM 2018;07-05-2018;6040;6;391;1;Spese correnti;3;Acquisto di beni e servizi;2;Acquisto di servizi;5;Utenze e canoni;1;Telefonia fissa;08-05-2018;
574;1;852;"38,60";"108,24";TELECOM ITALIA S.P.A.-TIM SPA; ;Fatt.n. 8V00152256 del 06/04/2018 3BIM 2018;07-05-2018;6040;10;393;1;Spese correnti;3;Acquisto di beni e servizi;2;Acquisto di servizi;5;Utenze e canoni;1;Telefonia fissa;08-05-2018;
574;2;852;"69,64";"108,24";TELECOM ITALIA S.P.A.-TIM SPA; ;Fatt.n. 4220918800003046 del 06/04/2018 3BIM 2018;07-05-2018;6040;10;393;1;Spese correnti;3;Acquisto di beni e servizi;2;Acquisto di servizi;5;Utenze e canoni;1;Telefonia fissa;08-05-2018;
575;1;848;"85,76";"419,73";AL CENTESIMO SOC. COOP. S.R.L.;ZC12122971;SALDO Fatt.n. 4/E  del 28/02/2018 CARNE PER ASILO NIDO FEB.2018;07-05-2018;1776;1;454;1;Spese correnti;3;Acquisto di beni e servizi;1;Acquisto di beni;2;Altri beni di consumo;999;Altri beni e materiali di consumo n.a.c.;07-05-2018;
575;2;848;"138,21";"419,73";AL CENTESIMO SOC. COOP. S.R.L.;ZC12122971;SALDO Fatt.n. 2/E  del 28/02/2018 carne per asilo nido  gen.2018;07-05-2018;1776;1;454;1;Spese correnti;3;Acquisto di beni e servizi;1;Acquisto di beni;2;Altri beni di consumo;999;Altri beni e materiali di consumo n.a.c.;07-05-2018;
575;3;848;"195,76";"419,73";AL CENTESIMO SOC. COOP. S.R.L.;ZC12122971;SALDO Fatt.n. 6/E  del 31/03/2018 CARNE PER ASILO NIDO MAR.2018;07-05-2018;1776;1;454;1;Spese correnti;3;Acquisto di beni e servizi;1;Acquisto di beni;2;Altri beni di consumo;999;Altri beni e materiali di consumo n.a.c.;07-05-2018;
576;1;849;"111,41";"2.018,42";LOPRESTI MARIA GABRIELLA; ;SALDO Fatt.n. 8/E  del 16/04/2018 RIMBORSO N. 2 VIAGGI 28/02/18 E 22/03/18;07-05-2018;1046;0;115;1;Spese correnti;3;Acquisto di beni e servizi;2;Acquisto di servizi;1;Organi e incarichi istituzionali dell'amministrazione;1;Organi istituzionali dell'amministrazione - Indennità;07-05-2018;
576;2;849;"1.907,01";"2.018,42";LOPRESTI MARIA GABRIELLA; ;SALDO Fatt.n. 7/E  del 16/04/2018 COMP. REVISORE DEI CONTI 01/01-31/03/2018;07-05-2018;1046;0;115;1;Spese correnti;3;Acquisto di beni e servizi;2;Acquisto di servizi;1;Organi e incarichi istituzionali dell'amministrazione;1;Organi istituzionali dell'amministrazione - Indennità;07-05-2018;
577;1;850;"1.480,64";"1.480,64";Wind Tre S.p.A.; ;SALDO Fatt.n. 2017E000011025  del 19/12/2017 canoni 01/03-30/04/17-periodo 01/01-28/02/17;07-05-2018;6040;5;426;1;Spese correnti;3;Acquisto di beni e servizi;2;Acquisto di servizi;5;Utenze e canoni;1;Telefonia fissa;07-05-2018;
579;1;856;"1.490,00";"1.490,00";FARMACIA SETTETROMBE DI LUDOVICO BARBERA;Z892289E86;SALDO Fatt.n. 13E/2018  del 19/04/2018 N. 10 SEGGIOLONI PER ASILO NIDO;08-05-2018;1776;0;41;1;Spese correnti;3;Acquisto di beni e servizi;1;Acquisto di beni;2;Altri beni di consumo;999;Altri beni e materiali di consumo n.a.c.;08-05-2018;
580;1;857;"500,00";"500,00";COMUNE DI PATTI; ;rimborso somme per costi sostenuti dal distretto socio sanitario per espletamento gare servizi per l'infanzia;08-05-2018;1776;1;42;1;Spese correnti;3;Acquisto di beni e servizi;1;Acquisto di beni;2;Altri beni di consumo;999;Altri beni e materiali di consumo n.a.c.;08-05-2018;
581;1;858;"515,50";"515,50";COMUNE DI PATTI; ;RIMBORSO SPESE DI GARA DISTRETTO D30 NELL'AMBITO FONDI PAC ANZIANI;08-05-2018;1878;2;115;1;Spese correnti;3;Acquisto di beni e servizi;2;Acquisto di servizi;15;Contratti di servizio pubblico;9;Contratti di servizio di assistenza sociale domiciliare;08-05-2018;
582;1;859;"182,44";"182,44";AICCRE; ;AICCRE QUOTA ASSOCIATIVA ANNO 2018;08-05-2018;1060;8;131;1;Spese correnti;4;Trasferimenti correnti;1;Trasferimenti correnti a Amministrazioni Pubbliche;2;Trasferimenti correnti a Amministrazioni Locali;999;Trasferimenti correnti a altre Amministrazioni Locali n.a.c.;08-05-2018;
585;1;861;"10,90";"10,90";P.A.G.M. DI MANNINO GIOVANNI; ;SALDO Fatt.n. FATTPA 1_18  del 27/04/2018 PRENOTAZIONE REVISIONE;08-05-2018;6070;9;484;1;Spese correnti;3;Acquisto di beni e servizi;2;Acquisto di servizi;9;Manutenzione ordinaria e riparazioni;1;"Manutenzione ordinaria e riparazioni di mezzi di trasporto ad uso civile, di sicurezza e ordine pubblico";08-05-2018;
586;1;862;"6,20";"35,66";AUTOSTRADE PER L'ITALIA S.p.A.;0;ACCONTO Fatt.n. 900008182D  del 30/04/2018;08-05-2018;1017;0;28;1;Spese correnti;3;Acquisto di beni e servizi;2;Acquisto di servizi;99;Altri servizi;999;Altri servizi diversi n.a.c.;08-05-2018;
586;2;826;"28,20";"35,66";AUTOSTRADE PER L'ITALIA S.p.A.; ;SALDO Fatt.n. 900008182D  del 30/04/2018;08-05-2018;1017;0;28;1;Spese correnti;3;Acquisto di beni e servizi;2;Acquisto di servizi;99;Altri servizi;999;Altri servizi diversi n.a.c.;08-05-2018;
586;3;863;"0,23";"35,66";TELEPASS SPA;0;ACCONTO Fatt.n. 900008448T  del 30/04/2018;08-05-2018;1017;0;28;1;Spese correnti;3;Acquisto di beni e servizi;2;Acquisto di servizi;99;Altri servizi;999;Altri servizi diversi n.a.c.;08-05-2018;
586;4;826;"1,03";"35,66";TELEPASS SPA; ;ACCONTO Fatt.n. 900008448T  del 30/04/2018;08-05-2018;1017;0;28;1;Spese correnti;3;Acquisto di beni e servizi;2;Acquisto di servizi;99;Altri servizi;999;Altri servizi diversi n.a.c.;08-05-2018;
587;1;866;"1.723,70";"1.723,70";ORIFICI CARMELO-MARTINO CARMELA; ;CANONE LOCAZIONE IMMOBILE P.M. GEN./MAG. 2018;14-05-2018;2230;0;154;1;Spese correnti;3;Acquisto di beni e servizi;2;Acquisto di servizi;7;Utilizzo di beni di terzi;1;Locazione di beni immobili;14-05-2018;
588;1;867;"-218,67";"382,91";Xerox Spa;ZF21C92253;SALDO Fatt.n. 180006108 /G  del 04/05/2018 STORNO PARZ. F.170009548 01/02/17-28/02/17;14-05-2018;2110;3;436;1;Spese correnti;3;Acquisto di beni e servizi;2;Acquisto di servizi;7;Utilizzo di beni di terzi;8;Noleggi di impianti e macchinari;14-05-2018;
588;2;867;"601,58";"382,91";Xerox Spa;ZF21C92253;ACCONTO Fatt.n. 170009548 /G  del 06/09/2017 CANONE LOCAZIONE N.2 FOTOCOPIATORI 01/02-30/04/2017;14-05-2018;2110;3;436;1;Spese correnti;3;Acquisto di beni e servizi;2;Acquisto di servizi;7;Utilizzo di beni di terzi;8;Noleggi di impianti e macchinari;14-05-2018;
589;1;868;"54,44";"54,44";Xerox Spa;ZF21C92253;SALDO Fatt.n. 170009548 /G  del 06/09/2017 CANONE LOCAZIONE N.2 FOTOCOPIATORI 01/02-30/04/2017;14-05-2018;2110;3;436;1;Spese correnti;3;Acquisto di beni e servizi;2;Acquisto di servizi;7;Utilizzo di beni di terzi;8;Noleggi di impianti e macchinari;14-05-2018;
590;1;906;"17.917,61";"17.917,61";PIZZO PIPPO;7376806CE0;"SALDO Fatt.n. 18|2018  del 31/03/2018 SERVIZIO SPAZZAMENTO,RACCOLTA E TRASPORTO RSU MARZO 2018";16-05-2018;1744;0;118;1;Spese correnti;3;Acquisto di beni e servizi;2;Acquisto di servizi;15;Contratti di servizio pubblico;5;Contratti di servizio per il conferimento in discarica dei rifiuti;16-05-2018;
591;1;907;"666,34";"666,34";T.A.I. SRL;Z441FE4B65;SALDO Fatt.n. FATTPA 6_18  del 19/04/2018 TRASPORTO STUDENTI MARZO 2018;16-05-2018;2000;9;281;1;Spese correnti;3;Acquisto di beni e servizi;2;Acquisto di servizi;15;Contratti di servizio pubblico;2;Contratti di servizio di trasporto scolastico;16-05-2018;
592;1;908;"87,92";"87,92";AUTOLINEE MAGISTRO SRL;Z9D1FE4BDA;SALDO Fatt.n. FATTPA 48_18  del 19/04/2018 TRASPORTO STUDENTI MARZO 2018;16-05-2018;2000;9;282;1;Spese correnti;3;Acquisto di beni e servizi;2;Acquisto di servizi;15;Contratti di servizio pubblico;2;Contratti di servizio di trasporto scolastico;16-05-2018;
593;1;909;"103,82";"444,20";MAGGIOLI S.p.A.;Z0E213A5A9;SALDO Fatt.n. 0002147028  del 13/12/2017 REGISTRI STATO CIVILE;17-05-2018;6050;4;458;1;Spese correnti;3;Acquisto di beni e servizi;1;Acquisto di beni;2;Altri beni di consumo;1;"Carta, cancelleria e stampati";17-05-2018;
593;2;910;"340,38";"444,20";MAGGIOLI S.p.A.;Z0E213A5A9;SALDO Fatt.n. 0002148184  del 20/12/2017 registri stato civile;17-05-2018;6050;4;458;1;Spese correnti;3;Acquisto di beni e servizi;1;Acquisto di beni;2;Altri beni di consumo;1;"Carta, cancelleria e stampati";17-05-2018;
638;1;926;"67,13";"67,13";MyO S.R.L.; ;SALDO Fatt.n. 2040/180011131  del 20/04/2018 MATERIALE CANCELLERIA;18-05-2018;6050;0;69;1;Spese correnti;3;Acquisto di beni e servizi;1;Acquisto di beni;2;Altri beni di consumo;1;"Carta, cancelleria e stampati";21-05-2018;
639;1;936;"742,44";"742,44";EDISON ENERGIE S.P.A.; ;SALDO Fatt.n. FI18366000004485  del 24/04/2018 FATTURAZIONE 24/02-24/04/2018;21-05-2018;6160;0;394;1;Spese correnti;3;Acquisto di beni e servizi;2;Acquisto di servizi;5;Utenze e canoni;6;Gas;23-05-2018;
640;1;935;"242,72";"242,72";EDISON ENERGIE S.P.A.; ;SALDO Fatt.n. FI18366000004484  del 24/04/2018 FATTURAZIONE 19/11/17-24/04/2018;21-05-2018;6160;1;395;1;Spese correnti;3;Acquisto di beni e servizi;2;Acquisto di servizi;5;Utenze e canoni;999;Utenze e canoni per altri servizi n.a.c.;23-05-2018;
641;1;934;"52,58";"52,58";EDISON ENERGIE S.P.A.; ;SALDO Fatt.n. FI18366000004224  del 24/04/2018 FATTURAZIONE 01/03-24/04/2018;21-05-2018;6160;3;397;1;Spese correnti;3;Acquisto di beni e servizi;2;Acquisto di servizi;5;Utenze e canoni;6;Gas;23-05-2018;
642;1;927;"531,90";"531,90";ENEL ENERGIA SPA; ;SALDO Fatt.n. 004810794097  del 12/05/2018 FATT. APR.2018;21-05-2018;6030;5;459;1;Spese correnti;3;Acquisto di beni e servizi;2;Acquisto di servizi;5;Utenze e canoni;4;Energia elettrica;21-05-2018;
643;1;928;"89,05";"5.244,04";ENEL ENERGIA SPA;0000000000;SALDO Fatt.n. 004810780101  del 10/05/2018 FATT. MAR./APR.2018;21-05-2018;6030;12;466;1;Spese correnti;3;Acquisto di beni e servizi;2;Acquisto di servizi;5;Utenze e canoni;4;Energia elettrica;21-05-2018;
643;2;928;"212,68";"5.244,04";ENEL ENERGIA SPA; ;SALDO Fatt.n. 004810794095  del 12/05/2018 FATT. APR.2018;21-05-2018;6030;12;466;1;Spese correnti;3;Acquisto di beni e servizi;2;Acquisto di servizi;5;Utenze e canoni;4;Energia elettrica;21-05-2018;
643;3;928;"4.942,31";"5.244,04";ENEL ENERGIA SPA; ;SALDO Fatt.n. 004810794096  del 12/05/2018 FATT. APR.2018;21-05-2018;6030;12;466;1;Spese correnti;3;Acquisto di beni e servizi;2;Acquisto di servizi;5;Utenze e canoni;4;Energia elettrica;21-05-2018;
644;1;929;"5.591,18";"5.591,18";SICULA TRASPORTI S.R.L.;6150991658;SALDO Fatt.n. 530/03  del 31/03/2018 CONFERIMENTO RIFIUTI MARZO  2018;21-05-2018;1743;0;151;1;Spese correnti;3;Acquisto di beni e servizi;2;Acquisto di servizi;15;Contratti di servizio pubblico;5;Contratti di servizio per il conferimento in discarica dei rifiuti;21-05-2018;
645;1;930;"1.382,22";"1.382,22";AUTOMOBILE CLUB D'ITALIA; ;SALDO Fatt.n. 0000009583  del 27/03/2018 canone PRA anno 2018;21-05-2018;1272;0;113;1;Spese correnti;3;Acquisto di beni e servizi;2;Acquisto di servizi;99;Altri servizi;999;Altri servizi diversi n.a.c.;21-05-2018;
646;1;933;"217,50";"217,50";AGENZIA DELLE ENTRATE; ;REGISTRAZIONE SENTENZA CIVILE DELLA CORTE D'APPELLO N.689/2016;21-05-2018;1058;0;156;1;Spese correnti;3;Acquisto di beni e servizi;2;Acquisto di servizi;99;Altri servizi;2;Altre spese legali;22-05-2018;
647;1;931;"223,80";"223,80";ASMEL;7140282B19;ACCONTO Fatt.n. 304  del 27/04/2018 CORRISPETTIVO ASMECOMM;21-05-2018;1744;0;298;1;Spese correnti;3;Acquisto di beni e servizi;2;Acquisto di servizi;15;Contratti di servizio pubblico;5;Contratti di servizio per il conferimento in discarica dei rifiuti;21-05-2018;
648;1;932;"49,24";"49,24";ASMEL;7140282B19;SALDO Fatt.n. 304  del 27/04/2018 CORRISPETTIVO ASMECOMM;21-05-2018;1744;0;158;1;Spese correnti;3;Acquisto di beni e servizi;2;Acquisto di servizi;15;Contratti di servizio pubblico;5;Contratti di servizio per il conferimento in discarica dei rifiuti;21-05-2018;
649;1;998;"814,63";"3.073,16";CARTAREGIA COSIMO;Z032181600;SALDO Fatt.n. 11/PA  del 24/04/2018 lRif. Determina prot. 04  dell'11/01/2018-MANUTENZ. IMP. PUBBL. ILL.NE FEB.2018;23-05-2018;3930;1;586;1;Spese correnti;3;Acquisto di beni e servizi;2;Acquisto di servizi;15;Contratti di servizio pubblico;999;Altre spese per contratti di servizio pubblico;29-05-2018;
649;2;998;"1.062,67";"3.073,16";CARTAREGIA COSIMO;Z032181600;SALDO Fatt.n. 12/PA  del 24/04/2018 lRif. Determina prot. 04  dell'11/01/2018-MANUTENZ. IMP. PUBBL. ILL.NE MAR.2018;23-05-2018;3930;1;586;1;Spese correnti;3;Acquisto di beni e servizi;2;Acquisto di servizi;15;Contratti di servizio pubblico;999;Altre spese per contratti di servizio pubblico;29-05-2018;
649;3;998;"1.195,86";"3.073,16";CARTAREGIA COSIMO;Z032181600;SALDO Fatt.n. 14/PA  del 07/05/2018 lRif. Determina prot. 04  dell'11/01/2018-manutenz. imp. pubbl. illuminazione apr.2018;23-05-2018;3930;1;586;1;Spese correnti;3;Acquisto di beni e servizi;2;Acquisto di servizi;15;Contratti di servizio pubblico;999;Altre spese per contratti di servizio pubblico;29-05-2018;
651;1;997;"600,00";"600,00";Nalis Federico Giuseppe;Z65204DB02;SALDO Fatt.n. FATTPA 15_18  del 20/02/2018 ACC. INCARICO MEDICO COMPETENTE;28-05-2018;1011;0;517;1;Spese correnti;3;Acquisto di beni e servizi;2;Acquisto di servizi;10;Consulenze;1;"Incarichi libero professionali di studi, ricerca e consulenza";28-05-2018;
652;1;1000;"2.885,30";"2.885,30";HALLEY CONSULTING;ZE91C8D94E;SALDO Fatt.n. 20180528  del 03/04/2018 CANONE ASS.ZA SOFTWARE 01/01-31/03/2018;31-05-2018;2100;1;346;1;Spese correnti;3;Acquisto di beni e servizi;2;Acquisto di servizi;19;Servizi informatici e di telecomunicazioni;5;Servizi per i sistemi e relativa manutenzione;31-05-2018;
653;1;1004;"4.605,16";"4.605,16";COMUNE DI PATTI; ;CANONE LOCAZIONE UFF. CIRCOSCRIZIONALE N.37 DI PATTI - ANNO 2018;31-05-2018;2080;1;123;1;Spese correnti;4;Trasferimenti correnti;1;Trasferimenti correnti a Amministrazioni Pubbliche;2;Trasferimenti correnti a Amministrazioni Locali;3;Trasferimenti correnti a Comuni;01-06-2018;
654;1;1001;"656,02";"656,02";Xerox Spa;ZF21C92253;SALDO Fatt.n. 180005689 /G  del 03/05/2018 CANONE NOLEGGIO FOTOCOPIATORI 01/02-30/04/2018;31-05-2018;2110;3;436;1;Spese correnti;3;Acquisto di beni e servizi;2;Acquisto di servizi;7;Utilizzo di beni di terzi;8;Noleggi di impianti e macchinari;31-05-2018;
655;1;1002;"24.591,76";"24.591,76";COMUNE DI MONTALBANO ELICONA; ;Convenzione servizio in forma associata Segreteria Comunale anno 2017;31-05-2018;1026;0;294;1;Spese correnti;4;Trasferimenti correnti;1;Trasferimenti correnti a Amministrazioni Pubbliche;2;Trasferimenti correnti a Amministrazioni Locali;3;Trasferimenti correnti a Comuni;31-05-2018;
656;1;1003;"384,50";"384,50";COMUNE DI MONTALBANO ELICONA; ;CONVENZIONE SEGRETERIA COMUNALE ANNO 2017-INTEGRAZIONE;31-05-2018;1026;0;124;1;Spese correnti;4;Trasferimenti correnti;1;Trasferimenti correnti a Amministrazioni Pubbliche;2;Trasferimenti correnti a Amministrazioni Locali;3;Trasferimenti correnti a Comuni;31-05-2018;
657;1;1030;"70,53";"70,53";EDISON ENERGIE S.P.A.; ;SALDO Fatt.n. FI18366000004034  del 24/04/2018 FATTURAZIONE PERIODO 07/02/2017-24/04/2018;31-05-2018;6160;2;396;1;Spese correnti;3;Acquisto di beni e servizi;2;Acquisto di servizi;5;Utenze e canoni;999;Utenze e canoni per altri servizi n.a.c.;07-06-2018;
658;1;1005;"1.518,37";"1.962,51";FIORE SALVATORE VITTORIO; ;INDENNITA' FUNZIONE MAGGIO 2018;01-06-2018;1001;0;18;1;Spese correnti;3;Acquisto di beni e servizi;2;Acquisto di servizi;1;Organi e incarichi istituzionali dell'amministrazione;1;Organi istituzionali dell'amministrazione - Indennità;01-06-2018;
658;2;1006;"151,83";"1.962,51";INTERDONATO ARMANDO; ;INDENNITA' FUNZIONE MAGGIO 2018;01-06-2018;1001;0;18;1;Spese correnti;3;Acquisto di beni e servizi;2;Acquisto di servizi;1;Organi e incarichi istituzionali dell'amministrazione;1;Organi istituzionali dell'amministrazione - Indennità;01-06-2018;
658;3;1007;"113,88";"1.962,51";LAMANCUSA MARCO; ;INDENNITA' FUNZIONE MAGGIO 2018;01-06-2018;1001;0;18;1;Spese correnti;3;Acquisto di beni e servizi;2;Acquisto di servizi;1;Organi e incarichi istituzionali dell'amministrazione;1;Organi istituzionali dell'amministrazione - Indennità;01-06-2018;
658;4;1008;"178,43";"1.962,51";PETTINATO  ROSA SANDRA; ;INDENNITA' FUNZIONE MAGGIO 2018(01/05-09/05 E 23/05-31/05);01-06-2018;1001;0;18;1;Spese correnti;3;Acquisto di beni e servizi;2;Acquisto di servizi;1;Organi e incarichi istituzionali dell'amministrazione;1;Organi istituzionali dell'amministrazione - Indennità;01-06-2018;
659;1;1009;"227,76";"227,76";FORZANO GIUSEPPE; ;INDENNITA' FUNZIONE PRESIDENTE C.C. MAG. 2018;01-06-2018;1001;0;56;1;Spese correnti;3;Acquisto di beni e servizi;2;Acquisto di servizi;1;Organi e incarichi istituzionali dell'amministrazione;1;Organi istituzionali dell'amministrazione - Indennità;01-06-2018;
661;1;1011;"2.000,00";"2.000,00";STUDIO LEGALE SALAZAR-ASSOCIAZIONE PROFESSIONALE; ;ACCONTO Fatt.n. 02/E  del 30/01/2018 GIUDIZIO BUCCA ED ALTRI;01-06-2018;1058;0;161;1;Spese correnti;3;Acquisto di beni e servizi;2;Acquisto di servizi;99;Altri servizi;2;Altre spese legali;01-06-2018;
662;1;1012;"1.020,95";"1.020,95";STUDIO LEGALE SALAZAR-ASSOCIAZIONE PROFESSIONALE; ;SALDO Fatt.n. 02/E  del 30/01/2018 GIUDIZIO BUCCA ED ALTRI;01-06-2018;1058;0;53;1;Spese correnti;3;Acquisto di beni e servizi;2;Acquisto di servizi;99;Altri servizi;2;Altre spese legali;01-06-2018;
663;1;1013;"123,25";"123,25";GALLO CIRINO; ;ACCONTO Fatt.n. FATTPA 2_18  del 24/01/2018 GIUDIZIO CIVILE COM. DI SAN PIERO PATTI/ING. SIRACUSANO R.G.N. 1812/2013 TRIB. DI PATTI DEFINITO CON SENTENZA N.763/17. DELIB. G.M. N.268 DEL 14.11.13. SALDO ONORARI E SPESE.;01-06-2018;1058;0;487;1;Spese correnti;3;Acquisto di beni e servizi;2;Acquisto di servizi;99;Altri servizi;2;Altre spese legali;01-06-2018;
664;1;1014;"2.427,04";"2.427,04";GALLO CIRINO; ;SALDO Fatt.n. FATTPA 2_18  del 24/01/2018 GIUDIZIO CIVILE COM. DI SAN PIERO PATTI/ING. SIRACUSANO R.G.N. 1812/2013 TRIB. DI PATTI DEFINITO CON SENTENZA N.763/17. DELIB. G.M. N.268 DEL 14.11.13. SALDO ONORARI E SPESE.;01-06-2018;1058;0;40;1;Spese correnti;3;Acquisto di beni e servizi;2;Acquisto di servizi;99;Altri servizi;2;Altre spese legali;01-06-2018;
665;1;1015;"2.172,46";"5.431,15";S.R.R. MESSINA PROVINCIA SOC. CONSOR. SPA; ;SALDO Fatt.n. 155  del 18/04/2018 QUOTA STRUTTURA AZIENDALE SRR MESSINA PROVINCIA;01-06-2018;1752;2;170;1;Spese correnti;4;Trasferimenti correnti;3;Trasferimenti correnti a Imprese;99;Trasferimenti correnti a altre imprese;999;Trasferimenti correnti a altre imprese;01-06-2018;
665;2;1015;"3.258,69";"5.431,15";S.R.R. MESSINA PROVINCIA SOC. CONSOR. SPA; ;SALDO Fatt.n. 96  del 02/03/2018 QUOTA STRUTTURA AZIENDALE SRR MESSINA PROVINCIA;01-06-2018;1752;2;170;1;Spese correnti;4;Trasferimenti correnti;3;Trasferimenti correnti a Imprese;99;Trasferimenti correnti a altre imprese;999;Trasferimenti correnti a altre imprese;01-06-2018;
666;1;1016;"1.786,46";"1.786,46";Pi.Eco S.r.l.;Z1D1B9D2D9;SALDO Fatt.n. 263  del 30/12/2017 CONFERIMENTO RIFIUTI DIC.2017;01-06-2018;1743;0;168;1;Spese correnti;3;Acquisto di beni e servizi;2;Acquisto di servizi;15;Contratti di servizio pubblico;5;Contratti di servizio per il conferimento in discarica dei rifiuti;01-06-2018;
667;1;1017;"6.686,89";"6.686,89";SICULA TRASPORTI S.R.L.;6150991658;ACCONTO Fatt.n. 2464/03  del 31/12/2017 conferimento rifiuti in discarica dic.2017;01-06-2018;1743;0;511;1;Spese correnti;3;Acquisto di beni e servizi;2;Acquisto di servizi;15;Contratti di servizio pubblico;5;Contratti di servizio per il conferimento in discarica dei rifiuti;01-06-2018;
668;1;1018;"1.251,18";"1.251,18";SICULA TRASPORTI S.R.L.;6150991658;SALDO Fatt.n. 2464/03  del 31/12/2017 conferimento rifiuti in discarica dic.2017;01-06-2018;1743;0;169;1;Spese correnti;3;Acquisto di beni e servizi;2;Acquisto di servizi;15;Contratti di servizio pubblico;5;Contratti di servizio per il conferimento in discarica dei rifiuti;01-06-2018;
669;1;1019;"2,34";"14,26";AUTOSTRADE PER L'ITALIA S.p.A.;0;ACCONTO Fatt.n. 900010474D  del 30/05/2018 telepass maggio 2018;01-06-2018;1017;0;28;1;Spese correnti;3;Acquisto di beni e servizi;2;Acquisto di servizi;99;Altri servizi;999;Altri servizi diversi n.a.c.;01-06-2018;
669;2;0;"10,66";"14,26";AUTOSTRADE PER L'ITALIA S.p.A.; ;SALDO Fatt.n. 900010474D  del 30/05/2018 telepass maggio 2018;01-06-2018;1017;0;28;1;Spese correnti;3;Acquisto di beni e servizi;2;Acquisto di servizi;99;Altri servizi;999;Altri servizi diversi n.a.c.;01-06-2018;
669;3;1020;"0,23";"14,26";TELEPASS SPA;0;ACCONTO Fatt.n. 900010677T  del 30/05/2018 telepass maggio 2018;01-06-2018;1017;0;28;1;Spese correnti;3;Acquisto di beni e servizi;2;Acquisto di servizi;99;Altri servizi;999;Altri servizi diversi n.a.c.;01-06-2018;
669;4;0;"1,03";"14,26";TELEPASS SPA; ;SALDO Fatt.n. 900010677T  del 30/05/2018 telepass maggio 2018;01-06-2018;1017;0;28;1;Spese correnti;3;Acquisto di beni e servizi;2;Acquisto di servizi;99;Altri servizi;999;Altri servizi diversi n.a.c.;01-06-2018;
670;1;1021;"2.418,64";"2.418,64";COOP. SOCIALE ORCHIDEA;Z432014AD5;ACCONTO Fatt.n. 55 E  del 07/05/2018 preparazione pasti mensa scolastica aprile 2018;04-06-2018;2000;8;398;1;Spese correnti;3;Acquisto di beni e servizi;2;Acquisto di servizi;15;Contratti di servizio pubblico;6;Contratti di servizio per le mense scolastiche;04-06-2018;
671;1;1022;"3.857,28";"3.857,28";COOP. SOCIALE ORCHIDEA;Z432014AD5;ACCONTO Fatt.n. 55 E  del 07/05/2018 preparazione pasti mensa scolastica aprile 2018;04-06-2018;2000;8;122;1;Spese correnti;3;Acquisto di beni e servizi;2;Acquisto di servizi;15;Contratti di servizio pubblico;6;Contratti di servizio per le mense scolastiche;04-06-2018;
672;1;1023;"1.000,00";"1.000,00";COOP. SOCIALE ORCHIDEA;Z432014AD5;SALDO Fatt.n. 55 E  del 07/05/2018 preparazione pasti mensa scolastica aprile 2018;04-06-2018;1878;19;399;1;Spese correnti;3;Acquisto di beni e servizi;1;Acquisto di beni;2;Altri beni di consumo;11;Generi alimentari;04-06-2018;
673;1;1024;"344,74";"344,74";ORIFICI CARMELO-MARTINO CARMELA; ;CANONE LOCAZIONE IMMOBILE P.M. giugno 2018;04-06-2018;2230;0;154;1;Spese correnti;3;Acquisto di beni e servizi;2;Acquisto di servizi;7;Utilizzo di beni di terzi;1;Locazione di beni immobili;04-06-2018;
674;1;1026;"1.000,00";"1.000,00";RICCIARDO TONINO MAURO; ;"SALDO Fatt.n. 09/2018 F.E.P.A.  del 09/05/2018 Comune di San Piero Patti/Rosario Adamo+1, determina sindacale d'incarico n. 6 del 27.3.2018.";05-06-2018;1058;0;46;1;Spese correnti;3;Acquisto di beni e servizi;2;Acquisto di servizi;99;Altri servizi;2;Altre spese legali;05-06-2018;
675;1;1027;"6.340,48";"6.340,48";IALITE ONLUS;ZA020E82FC;"SALDO Fatt.n. 73  del 09/05/2018 SERVIZIO DI ASSISTENZA DOMICILIARE IN FAVORE DI         ANZIANI,MINORI, DIVERSAMENTE ABILI E NUCLEI FAMILIARI IN CONDIZIONI DI         DISAGIO - DAL 01.04.2018 AL 30.04.2018 - CIG: ZA020E82FC";05-06-2018;1878;2;35;1;Spese correnti;3;Acquisto di beni e servizi;2;Acquisto di servizi;15;Contratti di servizio pubblico;9;Contratti di servizio di assistenza sociale domiciliare;05-06-2018;
676;1;1028;"-0,01";"187,09";SOCIETA' COOP.  NUOVI ORIZZONTI ARL;ZF61EOF9D7;SALDO Fatt.n. 22/P.A.  del 14/05/2018 INTERVENTI IN FAVORE DELLE PERSONE IN CONDIZIONE DI DISABILITA' GRAVISSIMA/2014;05-06-2018;1884;1;456;1;Spese correnti;4;Trasferimenti correnti;2;Trasferimenti correnti a Famiglie;1;Interventi previdenziali;999;Altri sussidi e assegni;05-06-2018;
676;2;1028;"187,10";"187,09";SOCIETA' COOP.  NUOVI ORIZZONTI ARL;ZF61EOF9D7;SALDO Fatt.n. 22/P.A.  del 14/05/2018 INTERVENTI IN FAVORE DELLE PERSONE IN CONDIZIONE DI DISABILITA' GRAVISSIMA/2014;05-06-2018;1884;1;456;1;Spese correnti;4;Trasferimenti correnti;2;Trasferimenti correnti a Famiglie;1;Interventi previdenziali;999;Altri sussidi e assegni;05-06-2018;
677;1;1029;"1.000,00";"1.000,00";AMBIENTE E NATURA SRL;ZDD218298A;SALDO Fatt.n. 03  del 17/03/2018 MANUTENZIONE VERDE PUBBLICO;05-06-2018;4035;0;532;2;Spese in conto capitale;2;Investimenti fissi lordi e acquisto di terreni;1;Beni materiali;9;Beni immobili;13;Altre vie di comunicazione;05-06-2018;
678;1;1049;"30,56";"30,56";MyO S.R.L.; ;SALDO Fatt.n. 2040/180015441  del 31/05/2018 materiale informatico;06-06-2018;2140;6;110;1;Spese correnti;3;Acquisto di beni e servizi;1;Acquisto di beni;2;Altri beni di consumo;6;Materiale informatico;14-06-2018;
679;1;1031;"1.621,74";"1.621,74";ASSOCIAZIONE FRATERNITA' MISERICORDIA; ;INTERVENTO SOSTEGNO SOGGETTI DIVERSAMENTE ABILI NELLE SCUOLE A.S.2017/2018-MARZO 2018;08-06-2018;1775;0;456;1;Spese correnti;3;Acquisto di beni e servizi;2;Acquisto di servizi;15;Contratti di servizio pubblico;999;Altre spese per contratti di servizio pubblico;08-06-2018;
680;1;1032;"400,00";"400,00";ASSOCIAZIONE FRATERNITA' MISERICORDIA; ;NTERVENTO SOSTEGNO SOGGETTI DIVERSAMENTE ABILI NELLE SCUOLE A.S.2017/2018-MARZO 2018;08-06-2018;1775;1;457;1;Spese correnti;3;Acquisto di beni e servizi;2;Acquisto di servizi;15;Contratti di servizio pubblico;999;Altre spese per contratti di servizio pubblico;08-06-2018;
681;1;1033;"2.576,20";"2.576,20";LO PRESTI GIORGIO;Z0F237B11F;SALDO Fatt.n. FATTPA 2_18  del 11/05/2018 RIPRISTINO CONDOTTA FOGNARIA C/DA PETTIROSSO;11-06-2018;1577;0;155;1;Spese correnti;3;Acquisto di beni e servizi;2;Acquisto di servizi;9;Manutenzione ordinaria e riparazioni;11;Manutenzione ordinaria e riparazioni di altri beni materiali;11-06-2018;
682;1;1034;"16,49";"59,00";KUWAIT PETROLEUM ITALIA S.P.A.;6516542493;Fatt.n. PJ00126984 del 30/04/2018 carburante automezzi comunali apr.2018;11-06-2018;6080;1;22;1;Spese correnti;3;Acquisto di beni e servizi;1;Acquisto di beni;2;Altri beni di consumo;2;"Carburanti, combustibili e lubrificanti";11-06-2018;
682;2;1034;"42,51";"59,00";KUWAIT PETROLEUM ITALIA S.P.A.; ;Fatt.n. PJ00126984 del 30/04/2018 carburante automezzi comunali apr.2018;11-06-2018;6080;1;22;1;Spese correnti;3;Acquisto di beni e servizi;1;Acquisto di beni;2;Altri beni di consumo;2;"Carburanti, combustibili e lubrificanti";11-06-2018;
683;1;1035;"55,00";"55,00";KUWAIT PETROLEUM ITALIA S.P.A.; ;Fatt.n. PJ00126984 del 30/04/2018 carburante automezzi comunali apr.2018;11-06-2018;6080;2;23;1;Spese correnti;3;Acquisto di beni e servizi;1;Acquisto di beni;2;Altri beni di consumo;2;"Carburanti, combustibili e lubrificanti";11-06-2018;
684;1;1036;"816,00";"816,00";KUWAIT PETROLEUM ITALIA S.P.A.; ;Fatt.n. PJ00126984 del 30/04/2018 carburante automezzi comunali apr.2018;11-06-2018;6080;3;24;1;Spese correnti;3;Acquisto di beni e servizi;1;Acquisto di beni;2;Altri beni di consumo;2;"Carburanti, combustibili e lubrificanti";11-06-2018;
685;1;1037;"235,50";"235,50";KUWAIT PETROLEUM ITALIA S.P.A.; ;Fatt.n. PJ00126984 del 30/04/2018 carburante automezzi comunali apr.2018;11-06-2018;6080;4;25;1;Spese correnti;3;Acquisto di beni e servizi;1;Acquisto di beni;2;Altri beni di consumo;2;"Carburanti, combustibili e lubrificanti";11-06-2018;
686;1;1038;"211,00";"211,00";KUWAIT PETROLEUM ITALIA S.P.A.; ;Fatt.n. PJ00126984 del 30/04/2018 carburante automezzi comunali apr.2018;11-06-2018;6080;5;26;1;Spese correnti;3;Acquisto di beni e servizi;1;Acquisto di beni;2;Altri beni di consumo;2;"Carburanti, combustibili e lubrificanti";11-06-2018;
687;1;1039;"122,00";"122,00";KUWAIT PETROLEUM ITALIA S.P.A.; ;Fatt.n. PJ00126984 del 30/04/2018 carburante automezzi comunali apr.2018;11-06-2018;6080;7;27;1;Spese correnti;3;Acquisto di beni e servizi;1;Acquisto di beni;2;Altri beni di consumo;2;"Carburanti, combustibili e lubrificanti";11-06-2018;
688;1;1040;"14,25";"14,25";SIAE; ;SALDO Fatt.n. 1618013978  del 12/05/2018 diritti siae;11-06-2018;1512;1;152;1;Spese correnti;3;Acquisto di beni e servizi;2;Acquisto di servizi;2;"Organizzazione eventi, pubblicita` e servizi per trasferta";5;Organizzazione e partecipazione a manifestazioni e convegni;11-06-2018;
689;1;1041;"203,25";"203,25";TELECOM ITALIA S.P.A.-TIM SPA; ;SALDO Fatt.n. 8V00222221  del 09/05/2018 FATT. III BIM. 2018 IST. COMPRENSIVO;11-06-2018;6040;9;392;1;Spese correnti;3;Acquisto di beni e servizi;2;Acquisto di servizi;5;Utenze e canoni;1;Telefonia fissa;12-06-2018;
690;1;1042;"175,94";"175,94";AL CENTESIMO SOC. COOP. S.R.L.;ZC12122971;SALDO Fatt.n. 7/E  del 14/05/2018 carne per asilo nido apr.2018;12-06-2018;1776;1;454;1;Spese correnti;3;Acquisto di beni e servizi;1;Acquisto di beni;2;Altri beni di consumo;999;Altri beni e materiali di consumo n.a.c.;12-06-2018;
691;1;1043;"757,63";"1.688,79";AL CENTESIMO SOC. COOP. S.R.L.;ZAF20DE63B;SALDO Fatt.n. 1/E  del 28/02/2018 generi alimentari per asilo nido gen.2018;12-06-2018;1776;1;408;1;Spese correnti;3;Acquisto di beni e servizi;1;Acquisto di beni;2;Altri beni di consumo;999;Altri beni e materiali di consumo n.a.c.;12-06-2018;
691;2;1043;"931,16";"1.688,79";AL CENTESIMO SOC. COOP. S.R.L.;ZAF20DE63B;SALDO Fatt.n. 5/E  del 31/03/2018 FORNITURA GENERI ALIMENTARI ASILO NIDO MARZO 2018;12-06-2018;1776;1;408;1;Spese correnti;3;Acquisto di beni e servizi;1;Acquisto di beni;2;Altri beni di consumo;999;Altri beni e materiali di consumo n.a.c.;12-06-2018;
692;1;1044;"540,94";"540,94";SCAFIDI GIUSEPPE;Z1D2165AF9;Fatt.n. 000009-2018-FE del 16/05/2018 RIFERIMENTO PREVENTIVO 30/2018 DEL 23/04/2018 SU FIAT STILO TG CS789CA;12-06-2018;6070;1;541;1;Spese correnti;3;Acquisto di beni e servizi;2;Acquisto di servizi;9;Manutenzione ordinaria e riparazioni;1;"Manutenzione ordinaria e riparazioni di mezzi di trasporto ad uso civile, di sicurezza e ordine pubblico";12-06-2018;
693;1;1045;"421,53";"421,53";SCAFIDI GIUSEPPE;Z1D2165AF9;Fatt.n. 000008-2018-FE del 16/05/2018 RIFERIMENTO PREVENTIVO 29/2018 DEL 23/04/2018 SU SUZUKI TG CN409JZ;12-06-2018;6070;4;543;1;Spese correnti;3;Acquisto di beni e servizi;2;Acquisto di servizi;9;Manutenzione ordinaria e riparazioni;1;"Manutenzione ordinaria e riparazioni di mezzi di trasporto ad uso civile, di sicurezza e ordine pubblico";12-06-2018;
694;1;1046;"286,25";"286,25";SCAFIDI GIUSEPPE;Z1D2165AF9;Fatt.n. 000007-2018-FE del 16/05/2018 RIFERIMENTO PREVENTIVO 56/2018 DEL 04/05/2018 SU FIAT PANDA TG CZ839XJ;12-06-2018;6070;7;545;1;Spese correnti;3;Acquisto di beni e servizi;2;Acquisto di servizi;9;Manutenzione ordinaria e riparazioni;1;"Manutenzione ordinaria e riparazioni di mezzi di trasporto ad uso civile, di sicurezza e ordine pubblico";12-06-2018;
695;1;1047;"1.414,47";"1.414,47";SCAFIDI GIUSEPPE;Z1D2165AF9;Fatt.n. 000006-2018-FE del 16/05/2018 RIFERIMENTO PREVENTIVO 55/2018 DEL 04/05/2018 SU SCUOLABUS IVECO DAILY TG CT940ML;12-06-2018;6070;9;546;1;Spese correnti;3;Acquisto di beni e servizi;2;Acquisto di servizi;9;Manutenzione ordinaria e riparazioni;1;"Manutenzione ordinaria e riparazioni di mezzi di trasporto ad uso civile, di sicurezza e ordine pubblico";12-06-2018;
696;1;1048;"499,99";"499,99";ROTOLETTI ARMANDO;ZBE216799F;SALDO Fatt.n. 1/E  del 27/02/2018 MOSTRA FOTOGRAFICA;12-06-2018;1520;1;485;1;Spese correnti;3;Acquisto di beni e servizi;2;Acquisto di servizi;2;"Organizzazione eventi, pubblicita` e servizi per trasferta";5;Organizzazione e partecipazione a manifestazioni e convegni;12-06-2018;
697;1;1050;"2.119,59";"2.119,59";Wind Tre S.p.A.; ;SALDO Fatt.n. 2018E000004701  del 19/05/2018 TELEFONIA MOBILE FATTURAZIONE 01/03-30/04/18;14-06-2018;6040;5;390;1;Spese correnti;3;Acquisto di beni e servizi;2;Acquisto di servizi;5;Utenze e canoni;1;Telefonia fissa;14-06-2018;
698;1;1082;"1.281,00";"1.281,00";GRAFICHE EDITRICE GASPARI SRL;Z4023844A7;SALDO Fatt.n. 08681  del 22/05/2018 LICENZA SUAP 2018;19-06-2018;2100;7;162;1;Spese correnti;3;Acquisto di beni e servizi;2;Acquisto di servizi;19;Servizi informatici e di telecomunicazioni;1;Gestione e manutenzione applicazioni;19-06-2018;
699;1;1083;"150,06";"442,86";PENNISI SALVATORE;ZD0232633A;SALDO Fatt.n. 198  del 23/05/2018 VENDITA ESTINTORI PER SCUOLABUS;19-06-2018;1025;0;174;1;Spese correnti;3;Acquisto di beni e servizi;2;Acquisto di servizi;9;Manutenzione ordinaria e riparazioni;8;Manutenzione ordinaria e riparazioni di beni immobili;19-06-2018;
699;2;1083;"292,80";"442,86";PENNISI SALVATORE;ZD0232633A;SALDO Fatt.n. 351  del 23/05/2018 MANUTENZIONE ESTINTORI PRIMA SEMESTRALITA';19-06-2018;1025;0;174;1;Spese correnti;3;Acquisto di beni e servizi;2;Acquisto di servizi;9;Manutenzione ordinaria e riparazioni;8;Manutenzione ordinaria e riparazioni di beni immobili;19-06-2018;
700;1;1084;"279,09";"279,09";EDISON ENERGIE S.P.A.; ;SALDO Fatt.n. FI18366000005387  del 24/05/2018 fatturazione 01/04-24/05/18;19-06-2018;6160;3;397;1;Spese correnti;3;Acquisto di beni e servizi;2;Acquisto di servizi;5;Utenze e canoni;6;Gas;22-06-2018;
701;1;1085;"475,89";"475,89";ENEL ENERGIA SPA; ;SALDO Fatt.n. 004810994985  del 12/06/2018 FATT. MAG.2018;22-06-2018;6030;5;459;1;Spese correnti;3;Acquisto di beni e servizi;2;Acquisto di servizi;5;Utenze e canoni;4;Energia elettrica;22-06-2018;
702;1;1086;"195,63";"4.915,03";ENEL ENERGIA SPA; ;SALDO Fatt.n. 004810994983  del 12/06/2018 FATT. MAG.2018;22-06-2018;6030;12;466;1;Spese correnti;3;Acquisto di beni e servizi;2;Acquisto di servizi;5;Utenze e canoni;4;Energia elettrica;22-06-2018;
702;2;1086;"4.719,40";"4.915,03";ENEL ENERGIA SPA; ;SALDO Fatt.n. 004810994984  del 12/06/2018 FATT. MAG.2018;22-06-2018;6030;12;466;1;Spese correnti;3;Acquisto di beni e servizi;2;Acquisto di servizi;5;Utenze e canoni;4;Energia elettrica;22-06-2018;
703;1;1087;"6.738,04";"6.738,04";SICULA TRASPORTI S.R.L.;6150991658;SALDO Fatt.n. 726/03  del 30/04/2018 trasporto rifiuti aprile 2018;22-06-2018;1743;0;172;1;Spese correnti;3;Acquisto di beni e servizi;2;Acquisto di servizi;15;Contratti di servizio pubblico;5;Contratti di servizio per il conferimento in discarica dei rifiuti;22-06-2018;
704;1;1088;"726,90";"726,90";T.A.I. SRL;Z441FE4B65;SALDO Fatt.n. FATTPA 8_18  del 26/05/2018 TRASPORTO STUDENTI APR.2018;22-06-2018;2000;9;281;1;Spese correnti;3;Acquisto di beni e servizi;2;Acquisto di servizi;15;Contratti di servizio pubblico;2;Contratti di servizio di trasporto scolastico;22-06-2018;
705;1;1089;"95,91";"95,91";AUTOLINEE MAGISTRO SRL;Z9D1FE4BDA;SALDO Fatt.n. FATTPA 99_18  del 26/05/2018 TRASPORTO STUDENTI APR.2018;22-06-2018;2000;9;282;1;Spese correnti;3;Acquisto di beni e servizi;2;Acquisto di servizi;15;Contratti di servizio pubblico;2;Contratti di servizio di trasporto scolastico;22-06-2018;
706;1;1090;"872,00";"872,00";INTERDONATO GIACOMO S.N.C.;Z54234B649;SALDO Fatt.n. 000001-2018-FE  del 28/05/2018 FORNITURA MATERIALE LUDICO PER ASILO NIDO COMUNALE;22-06-2018;1776;0;41;1;Spese correnti;3;Acquisto di beni e servizi;1;Acquisto di beni;2;Altri beni di consumo;999;Altri beni e materiali di consumo n.a.c.;22-06-2018;
707;1;1091;"959,85";"959,85";LO PRESTI GIORGIO;ZB32B2C73;ACCONTO Fatt.n. FATTPA 3_18  del 25/05/2018 RIPRISTINO RETE IDRICA LAVORI SOMMA URGENZA DEL 07/05/2018;22-06-2018;1570;0;163;1;Spese correnti;3;Acquisto di beni e servizi;2;Acquisto di servizi;9;Manutenzione ordinaria e riparazioni;11;Manutenzione ordinaria e riparazioni di altri beni materiali;22-06-2018;
708;1;1092;"2.534,98";"2.534,98";LO PRESTI GIORGIO;ZB32B2C73;ACCONTO Fatt.n. FATTPA 3_18  del 25/05/2018 RIPRISTINO RETE IDRICA LAVORI SOMMA URGENZA DEL 07/05/2018;22-06-2018;4035;1;164;2;Spese in conto capitale;2;Investimenti fissi lordi e acquisto di terreni;1;Beni materiali;9;Beni immobili;13;Altre vie di comunicazione;22-06-2018;
709;1;1093;"1.770,79";"1.770,79";LO PRESTI GIORGIO;ZB32B2C73;SALDO Fatt.n. FATTPA 3_18  del 25/05/2018 RIPRISTINO RETE IDRICA LAVORI SOMMA URGENZA DEL 07/05/2018;22-06-2018;4035;0;165;2;Spese in conto capitale;2;Investimenti fissi lordi e acquisto di terreni;1;Beni materiali;9;Beni immobili;13;Altre vie di comunicazione;22-06-2018;
710;1;1094;"400,16";"400,16";VIDEOLAB SOC. COOP.;Z0023624E4;SALDO Fatt.n. FATTPA 1_18  del 28/05/2018 KIT RICEZIONE SATELLITARE;22-06-2018;1025;0;125;1;Spese correnti;3;Acquisto di beni e servizi;2;Acquisto di servizi;9;Manutenzione ordinaria e riparazioni;8;Manutenzione ordinaria e riparazioni di beni immobili;22-06-2018;
711;1;1095;"-0,01";"13.668,20";AZIENDA SICILIANA TRASPORTI;ZA81FE51C2;SALDO Fatt.n. 92/S4  del 24/05/2018 TRASPORTO STUDENTI  MAG.2018;25-06-2018;2000;9;279;1;Spese correnti;3;Acquisto di beni e servizi;2;Acquisto di servizi;15;Contratti di servizio pubblico;2;Contratti di servizio di trasporto scolastico;26-06-2018;
711;2;1095;"0,01";"13.668,20";AZIENDA SICILIANA TRASPORTI;ZA81FE51C2;SALDO Fatt.n. 76/S4  del 24/04/2018 TRASPORTO STUDENTI APR.2018;25-06-2018;2000;9;279;1;Spese correnti;3;Acquisto di beni e servizi;2;Acquisto di servizi;15;Contratti di servizio pubblico;2;Contratti di servizio di trasporto scolastico;26-06-2018;
711;3;1095;"6.562,19";"13.668,20";AZIENDA SICILIANA TRASPORTI;ZA81FE51C2;ACCONTO Fatt.n. 76/S4  del 24/04/2018 TRASPORTO STUDENTI APR.2018;25-06-2018;2000;9;279;1;Spese correnti;3;Acquisto di beni e servizi;2;Acquisto di servizi;15;Contratti di servizio pubblico;2;Contratti di servizio di trasporto scolastico;26-06-2018;
711;4;1095;"7.106,01";"13.668,20";AZIENDA SICILIANA TRASPORTI;ZA81FE51C2;SALDO Fatt.n. 92/S4  del 24/05/2018 TRASPORTO STUDENTI  MAG.2018;25-06-2018;2000;9;279;1;Spese correnti;3;Acquisto di beni e servizi;2;Acquisto di servizi;15;Contratti di servizio pubblico;2;Contratti di servizio di trasporto scolastico;26-06-2018;
712;1;1096;"1.836,00";"1.836,00";ROSSI GIOVANNI; ;SALDO Fatt.n. 11  del 15/05/2018 SALDO CAUSA CIVILE MESSINA A. _ COMUNE DI SAN PIERO PATTI;25-06-2018;1058;2;365;1;Spese correnti;3;Acquisto di beni e servizi;2;Acquisto di servizi;99;Altri servizi;2;Altre spese legali;26-06-2018;
719;1;1097;"8.210,03";"8.210,03";Eco.Geos S.r.l.;7258614DC0;ACCONTO Fatt.n. 8|2018  del 28/02/2018 servizio raccolta rifiuti febbraio 2018;25-06-2018;1744;0;435;1;Spese correnti;3;Acquisto di beni e servizi;2;Acquisto di servizi;15;Contratti di servizio pubblico;5;Contratti di servizio per il conferimento in discarica dei rifiuti;26-06-2018;
720;1;1098;"9.109,10";"9.109,10";Eco.Geos S.r.l.;7258614DC0;SALDO Fatt.n. 8|2018  del 28/02/2018 servizio raccolta rifiuti febbraio 2018;25-06-2018;1744;0;55;1;Spese correnti;3;Acquisto di beni e servizi;2;Acquisto di servizi;15;Contratti di servizio pubblico;5;Contratti di servizio per il conferimento in discarica dei rifiuti;26-06-2018;
721;1;1099;"3.806,40";"3.806,40";CINTIOLI FULVIO; ;SALDO Fatt.n. 05E  del 23/04/2018 DETERMINA SINDACALE N. 5 -PARERE CONVENZIONE COSTRU. NUOVE SEPOLTURE CIMITERO;26-06-2018;1058;0;33;1;Spese correnti;3;Acquisto di beni e servizi;2;Acquisto di servizi;99;Altri servizi;2;Altre spese legali;26-06-2018;
722;1;1100;"400,00";"400,00";BARTOLONE GIUSEPPE; ;ASSISTENZA ECONOMICA;26-06-2018;1900;0;177;1;Spese correnti;4;Trasferimenti correnti;2;Trasferimenti correnti a Famiglie;1;Interventi previdenziali;999;Altri sussidi e assegni;26-06-2018;
723;1;1107;"2.000,00";"2.000,00";STUDIO LEGALE SALAZAR-ASSOCIAZIONE PROFESSIONALE; ;ACCONTO Fatt.n. 03/E  del 30/01/2018 GIUDIZIO AL TAR COOP. IALITE;27-06-2018;1058;2;112;1;Spese correnti;3;Acquisto di beni e servizi;2;Acquisto di servizi;99;Altri servizi;2;Altre spese legali;27-06-2018;
724;1;1108;"1.020,95";"1.020,95";STUDIO LEGALE SALAZAR-ASSOCIAZIONE PROFESSIONALE; ;SALDO Fatt.n. 03/E  del 30/01/2018 GIUDIZIO AL TAR COOP. IALITE;27-06-2018;1058;0;52;1;Spese correnti;3;Acquisto di beni e servizi;2;Acquisto di servizi;99;Altri servizi;2;Altre spese legali;27-06-2018;
